Workbook

Sheet Budget Sheet Instructions
A1: Budget Detail Worksheet OMB Approval NO.: 1121-0329 Expires 11/30/2020
A2: For a 508 compliant, accessible version of the Budget Detail Worksheet, use the following link:
A3: https://ojp.gov/funding/Apply/Forms/BudgetDetailWorksheet/BDW508.pdf
A4: Worksheet Instructions
A5: Note: This document requires macros be enabled to work properly. Please ensure that macros are enabled before entering any data. You may be able to enable macros by choosing the "Enable this content" option from the Security Warning Ribbon above. If the ribbon is not visible you may have been prompted to enable macros when you opened the document as pictured here. If you elected to disable macros,
G6: please close the document and reopen it with macros enabled.
A7: Purpose:
A8: The Budget Detail Worksheet is provided for your use in the preparation of the budget and budget narrative. All required information (including the budget narrative) must be provided. Any category of expense not applicable to your budget may be left blank. Indicate any non-federal (match) amount in the appropriate category, if applicable.
A9: How to use this Workbook:
A10: The workbook includes several different worksheets. The first worksheet (this one) is an instruction sheet; the next worksheet includes the budget detail worksheet and narrative for year 1. There are duplicates of this worksheet for years 2-5 that can be completed as necessary. The last worksheet is a Budget Summary. It compiles all of the relevant budget information into a single location and should be reviewed for correctness before the workbook is uploaded to the GMS application. Step by Step Usage: 1. Please read and print this instruction page. It can be used as a reference while completing the rest of the document. 2. For each budget category, you can see a sample by viewing the 'Budget Detail Example Sheet'. 3. The 'Definitions' tab explains terms used in the instructions for the various budget categories. 4. Record Retention: In accordance with the requirements set forth in 2 CFR Part 200.333, all financial records, supporting documents, statistical records, and all other records pertinent to the award shall be retained by each organization for at least three years following the closure of the audit report covering the grant period. 5. The information disclosed in this form is subject to the Freedom of Information Act under U.S.C. 55.2.
A12: Budget Point of Contact Information:
A13: Contact Name: | B13: Last: | F13: First: | J13: Middle:
A14: Contact Phone: | D14: Contact Fax: | H14: Contact Email:
A15: Worksheet Index:
A16: Tab
A17: Budget Detail - Year 1
A18: Budget Detail - Year 2
A19: Budget Detail - Year 3
A20: Budget Detail - Year 4
A21: Budget Detail - Year 5
A22: Budget Summary
A23: Example - Budget Detail Sheet
A24: Definitions
A25: Budget Category Descriptions:
A26: Personnel | B26: List each position by title and name of employee, if available. Show the annual salary rate and the percentage of time to be devoted to the project. Compensation paid for employees engaged in grant activities must be consistent with that paid for similar work within the applicant organization. In the budget narrative, include a description of the responsibilities and duties of each position in relationship to fulfilling the project goals and objectives. All requested information must be included in the budget detail worksheet and budget narrative.
A27: Fringe Benefits | B27: Fringe benefits should be based on actual known costs or an approved negotiated rate by a Federal agency. If not based on an approved negotiated rate, list the composition of the fringe benefit package. Fringe benefits are for the personnel listed in the budget category (A) and only for the percentage of time devoted to the project. All requested information must be included in the budget detail worksheet and budget narrative.
A28: Travel | B28: Itemize travel expenses of staff personnel (e.g. staff to training, field interviews, advisory group meeting, etc.). Describe the purpose of each travel expenditure in reference to the project objectives. Show the basis of computation (e.g., six people to 3-day training at $X airfare, $X lodging, $X subsistence). In training projects, travel and meals for trainees should be listed separately. Show the number of trainees and the unit costs involved. Identify the location of travel, if known; or if unknown, indicate "location to be determined." Indicate whether applicant's formal written travel policy or the Federal Travel Regulations are followed. Note: Travel expenses for consultants should be included in the “Consultant Travel” data fields under the “Subawards (Subgrants)/Procurement Contracts” category.
A29: Equipment | B29: List non-expendable items that are to be purchased (Note: Organization's own capitalization policy for classification of equipment should be used). Expendable items should be included in the "Supplies" category. Applicants should analyze the cost benefits of purchasing versus leasing equipment, especially high cost items and those subject to rapid technological advances. Rented or leased equipment costs should be listed in the “Contracts” data fields under the “Subawards (Subgrants)/Procurement Contracts" category. In the budget narrative, explain how the equipment is necessary for the success of the project, and describe the procurement method to be used. All requested information must be included in the budget detail worksheet and budget narrative.
A30: Supplies | B30: List items by type (office supplies, postage, training materials, copy paper, and expendable equipment items costing less than $5,000, such as books, hand held tape recorders) and show the basis for computation. Generally, supplies include any materials that are expendable or consumed during the course of the project. All requested information must be included in the budget detail worksheet and budget narrative.
A31: Construction | B31: Provide a description of the construction project and an estimate of the costs. Minor repairs or renovations may be allowable and should be classified in the “Other” category. OJP does not currenly fund construction programs. Consult with the program office before budgeting funds in this category. All requested information must be included in the budget detail worksheet and budget narrative.
A32: Subawards (Subgrants), Procurement Contracts, & Consultant Fees | B32: Subawards (see “Subaward” definition at 2 CFR 200.92): Provide a description of the Federal award activities proposed to be carried out by any subrecipient and an estimate of the cost (include the cost per subrecipient, to the extent known prior to application submission). For each subrecipient, enter the subrecipient entity name, if known. Please indicate any subaward information included under budget category G. Subawards (Subgrants)/Procurement Contracts by including the label “(subaward)” with each subaward entry. Procurement contracts (see “Contract” definition at 2 CFR 200.22): Provide a description of the product or service to be procured by contract and an estimate of the cost. Indicate whether the applicant’s formal, written Procurement Policy or the Federal Acquisition Regulation is followed. Applicants are encouraged to promote free and open competition in awarding procurement contracts. A separate justification must be provided for sole source procurements in excess of the Simplified Acquisition Threshold set in accordance with 41 U.S.C. 1908 (currently set at $150,000). Consultant Fees: For each consultant enter the name, if known, service to be provided, hourly or daily fee (8-hour day), and estimated time on the project. Consultant fees in excess of the DOJ grant-making component’s maximum rate for an 8-hour day (currently $650) require additional justification and prior approval from the respective DOJ grant-making component. All requested information must be included in the budget detail worksheet and budget narrative.
A33: Other Costs | B33: List items (e.g., rent, reproduction, telephone, janitorial or security services, and investigative or confidential funds) by type and the basis of the computation. For example, provide the square footage and the cost per square foot for rent, or provide a monthly rental cost and how many months to rent. All requested information must be included in the budget detail worksheet and budget narrative.
A34: Indirect Costs | B34: Indirect costs are allowed only if: a) the applicant has a current, federally approved indirect cost rate; or b) the applicant is eligible to use and elects to use the “de minimis” indirect cost rate described in 2 C.F.R. 200.414(f). (See paragraph D.1.b. in Appendix VII to Part 200—States and Local Government and Indian Tribe Indirect Cost Proposals for a description of entities that may not elect to use the “de minimis” rate.) An applicant with a current, federally approved indirect cost rate must attach a copy of the rate approval, (a fully-executed, negotiated agreement. If the applicant does not have an approved rate, one can be requested by contacting the applicant’s cognizant Federal agency, which will review all documentation and approve a rate for the applicant organization, or if the applicant’s accounting system permits, costs may be allocated in the direct costs categories. (Applicant Indian tribal governments, in particular, should review Appendix VII to Part 200—States and Local Government and Indian Tribe Indirect Cost Proposals regarding submission and documentation of indirect cost proposals.) Narrative for any indirect costs should clearly state which direct costs the indirect cost agreement is being applied to. All requested information must be included in the budget detail worksheet and budget narrative. In order to use the “de minimis” indirect rate an applicant would need to attach written documentation to the application that advises DOJ of both the applicant’s eligibility (to use the “de minimis” rate) and its election. If the applicant elects the de minimis method, costs must be consistently charged as either indirect or direct costs, but may not be double charged or inconsistently charged as both. In addition, if this method is chosen then it must be used consistently for all federal awards until such time as the applicant entity chooses to negotiate a federally approved indirect cost rate.

Sheet Demographics (hidden)
A1: Demographic Form
B2: Please fill out this form in its entirety. Note that each subsection has individual instructions. Please read them carefully before filling out this form. If you are applying as a consortium please aggregate the data for all the Tribes represented in your application.
A3: I. Tribe Information
B4: 1. The name of each federally-recognized Indian Tribe that will be served by the proposed project(s):
B5: Name(s) | D5: The name(s) of your tribe and represented tribes.
B7: BIA Region(s)
B9: 2. What is the Tribe's current enrollment, including members living both on and off the reservation?
B11: 3. What is the Tribe's juvenile population, including members living both on and off the reservation?
B13: 4. Of your current enrollment, what is the Tribe's total number of unemployed 18 years and over?
B15: 5. Of your current enrollment, what is the Tribe's total number of under-employed (below the poverty line) 18 years and over?
B17: 6. Of your current enrollment, what is the Tribe's total number of employed 18 years and over?
B19: 7. What is the current local population base?
B21: 8. Please enter the approximate square mileage of the reservation/jurisdiction to be served: (sq. miles)
B23: 9. Please check the crime victim population area(s) that best describe the services the Tribe typically supports.
B34: 10. Have you applied for a CTAS grant before?
C36: If yes, what year?
B38: 11. Please provide your status as an applicant (check all that apply):
B45: a. If you selected Tribal Coalition or Tribal Consortia please list the tribes you represent:
B49: b. If you selected Non-profit organization describe the nature of you services and whom you provide them.
B54: 12. Please indicate if you agree with the following statement: The tribe(s)submitting this application consider themselves to be remotely located with respect to availability of justice or other relevant community services.
B55: If you selected “Yes”, please provide a brief statement that explains your selection. Examples might include “For a majority of our tribal community, law enforcement resource centers are greater than 1 hour’s drive away.” Or “Our tribal community has no resident medical facilities and the nearest public health center is operated by the City/Town of XXX which is not within tribal lands and not easily reached.”
A59: II. Property/Violent Crime
B60: Using the most recent available data and to the best of your ability using the UCR crime definitions, enter the actual number of incidents reported to your Tribe for the following crime types. Note that only those incidents for which your Tribe had primary response authority should be provided.
C62: UCR Data *
C63: Year
C64: Criminal Homicide
C65: Forcible Rape
C66: Robbery
C67: Aggravated Assault
C68: Burglary
C69: Larceny (except motor vehicle theft)
C70: Motor Vehicle Theft
B72: *Note: If your Tribe is not using UCR data or reports to NIBRS, please explain the source or methods used to report your crime data. If you do not report crime incidents at all please explain why you are unable to provide such data. If instructions are needed on converting your data to UCR Summary Data style please view the COPS Application Guide of the FBI's UCR Handbook (www.fbi.gov/ucr/handbook/ucrhandbook04.pdf) for more information.
B81: The FBI is retiring the current Summary Reporting System (SRS) and will transition to an all-NIBRS data collection system within the next five years. The transition to NIBRS will provide a more complete and accurate picture of crime at the tribal, national, state, and local level. As of 2021, the FBI will no longer collect summary data and will only accept data in the NIBRS format and COPS Office awards will be based on submitted NIBRS data. Transitioning all law enforcement agencies to NIBRS is the first step in gathering more comprehensive crime data. Tribal, state, and local COPS grantees are encouraged to expedite the transition to NIBRS in their jurisdictions so that they will remain eligible to receive COPS Office awards.
A83: III. Tribal Law Enforcement Information
B84: Please answer the following questions. NOTE: If you choose "none" for question 1 you are finished completing this section and do not need to answer 1a or 1b.
B85: 1. What law enforcement agency or departments does your Tribe operate? (check all that apply):
B93: a. What is the actual population your department serves as the primary law enforcement agency entity?
C94: This may or may not be the same as the population reported in the U.S. Census, the Tribe's current enrollment or the local population base. A Tribe with primary law enforcement authority is defined as having first responder responsibility to calls for service for all types of criminal incidents within its jurisdiction.
B97: b. Enter the current Fiscal Year Actual Sworn Force Strength as of the date of this application:
C98: The actual number of sworn officer positions is the actual number of sworn positions employed by your Tribe as of the date of this application. Do not include funded but currently vacant positions or unpaid positions. NOTE: For Tribes with multiple component law enforcement departments (e.g. Department of Public Safety and Fish and Wildlife Department), please report cumulative, full- and part-time sworn-force strength number for all law enforcement departments in your Tribe which would receive funding through this request if awarded.
C99: Full-Time: | F99: Part-Time:
B101: 2. On average how many hours of IN-SERVICE (non-recruit) training (e.g. FTO, continuing professional education, roll call, standard) are required annually for each of your agency’s officers/deputies in the following categories (if none, please indicate 0 hours)?
C103: Use of Force: | F103: De-escalation of conflict:
C105: Racial and ethnic bias that includes elements of implicit/unconscious bias:
C108: Gender bias in response to domestic violence and sexual assault:
C110: Bias towards lesbian, gay, bisexual, and transgender (LGBT) individuals:
C112: Community engagement (e.g., community policing and problem solving):
B114: 3. Does your agency administer a police training academy?
B116: 4. How many total hours of basic/recruit ACADEMY training are required for each of your agency’s officer/deputy recruits in the following categories (if none, please indicate 0 hours)?
C118: Use of Force: | F118: De-escalation of conflict:
C120: Racial and ethnic bias that includes elements of implicit/unconscious bias:
C123: Gender bias in response to domestic violence and sexual assault:
C125: Bias towards lesbian, gay, bisexual, and transgender (LGBT) individuals:
C127: Community engagement (e.g., community policing and problem solving):
A129: IV. Tribal Facilities, Capacities and Capabilities
B130: 1. Telecommunications and Technology
B131: a. Describe your Internet Access:
B137: b. What types of communication services are generally available to the tribe at large and/or the tribe's justice components? (check all that apply)
H139: Tribe | I139: Justice
C140: i. Land Line (telephone, dial-up service)
C141: ii. Cellular (telephone, data, etc.)
C142: iii. Satellite - Receive only (broadcasting services)
C143: iv. Satellite - 2-way (2-way voice and data and well as broadcasting)
C144: v. Radio services - (HF, VHF, UHF)
C145: vi. Point to Point Microwave
C146: vii. Other (please describe)
D147: Tribal
D149: Justice Comp.
B151: 2. Facilities and Services (check all that apply)
B152: Applicants should check and provide data for all the facilities and services located within the reservation/jurisdiction described in question 8 above.
G154: # of beds
G155: # of facilities
G156: # of facilities
G157: # of facilities
G158: # of facilities
G159: # of beds
G160: # of beds
G161: # of facilities
G162: # of facilities
G163: # of facilities
G164: # of facilities

Sheet Budget Detail - Year 1
A1: ='Budget Sheet Instructions'!A17 -> Budget Detail - Year 1
A2: Does this budget contain conference costs which is defined broadly to include meetings, retreats, seminars, symposia, and training activities? - Y/N
A3: (DOJ Financial Guide, Section 3.10)
A4: A. Personnel
A5: Name | B5: Position | C5: Computation
A6: List each name, if known. | B6: List each position, if known. | C6: Show annual salary rate & amount of time devoted to the project for each name/position.
C7: Salary | E7: Rate | F7: Time Worked (# of hours, days, months, years) | H7: Percentage of Time | J7: Total Cost | K7: Non-Federal Contribution | L7: Federal Request
J9: =CEILING(C9*F9*H9,1) -> $0 | L9: =IF(J9-K9<0,0,J9-K9) -> $0
J10: =CEILING(C10*F10*H10,1) -> $0 | L10: =IF(J10-K10<0,0,J10-K10) -> $0
J11: =CEILING(C11*F11*H11,1) -> $0 | L11: =IF(J11-K11<0,0,J11-K11) -> $0
A12: Total(s) | J12: =SUM(J9:J11) -> $0 | K12: =SUM(K9:K11) -> $0 | L12: =SUM(L9:L11) -> $0
A13: Narrative
A16: B. Fringe Benefits
A17: Name | D17: Computation
A18: List each grant-supported position receiving fringe benefits. | D18: Show the basis for computation.
D19: Base | F19: Rate | J19: Total Cost | K19: Non-Federal Contribution | L19: Federal Request
J21: =CEILING(D21*F21,1) -> $0 | L21: =IF(J21-K21<0,0,J21-K21) -> $0
J22: =CEILING(D22*F22,1) -> $0 | L22: =IF(J22-K22<0,0,J22-K22) -> $0
J23: =CEILING(D23*F23,1) -> $0 | L23: =IF(J23-K23<0,0,J23-K23) -> $0
A24: Total(s) | J24: =SUM(J21:J23) -> $0 | K24: =SUM(K21:K23) -> $0 | L24: =SUM(L21:L23) -> $0
A25: Narrative
A28: C. Travel
A29: Purpose of Travel | B29: Location | D29: Type of Expense | E29: Basis | F29: Computation
A30: Indicate the purpose of each trip or type of trip (training, advisory group meeting) | B30: Indicate the travel destination. | D30: Lodging, Meals, Etc. | E30: Per day, mile, trip, Etc. | F30: Compute the cost of each type of expense X the number of people traveling.
F31: Cost | G31: Quantity | H31: # of Staff | I31: # of Trips | J31: Total Cost | K31: Non-Federal Contribution | L31: Federal Request
E33: =IF((D33="Lodging"),"Night",IF((D33="Meals"),"Day",IF((D33="Mileage"),"Mile",IF((D33="Transportation"),"Round-trip","N/A")))) -> N/A | J33: =CEILING(F33*G33*H33*I33,1) -> $0 | L33: =IF(J33-K33<0,0,J33-K33) -> $0
E34: =IF((D34="Lodging"),"Night",IF((D34="Meals"),"Day",IF((D34="Mileage"),"Mile",IF((D34="Transportation"),"Round-trip","N/A")))) -> N/A | J34: =CEILING(F34*G34*H34*I34,1) -> $0 | L34: =IF(J34-K34<0,0,J34-K34) -> $0
E35: =IF((D35="Lodging"),"Night",IF((D35="Meals"),"Day",IF((D35="Mileage"),"Mile",IF((D35="Transportation"),"Round-trip","N/A")))) -> N/A | J35: =CEILING(F35*G35*H35*I35,1) -> $0 | L35: =IF(J35-K35<0,0,J35-K35) -> $0
A36: Total(s) | J36: =SUM(J33:J35) -> $0 | K36: =SUM(K33:K35) -> $0 | L36: =SUM(L33:L35) -> $0
A37: Narrative
A40: D. Equipment
A41: Item | D41: Computation
A42: List and describe each item of equipment that will be purchased | D42: Compute the cost (e.g., the number of each item to be purchased X the cost per item)
D43: # of Items | F43: Unit Cost | J43: Total Cost | K43: Non-Federal Contribution | L43: Federal Request
J45: =CEILING(D45*F45,1) -> $0 | L45: =IF(J45-K45<0,0,J45-K45) -> $0
J46: =CEILING(D46*F46,1) -> $0 | L46: =IF(J46-K46<0,0,J46-K46) -> $0
J47: =CEILING(D47*F47,1) -> $0 | L47: =IF(J47-K47<0,0,J47-K47) -> $0
A48: Total(s) | J48: =SUM(J45:J47) -> $0 | K48: =SUM(K45:K47) -> $0 | L48: =SUM(L45:L47) -> $0
A49: Narrative
A52: E. Supplies
A53: Supply Items | D53: Computation
A54: Provide a list of the types of items to be purchased with grant funds. | D54: Describe the item and the compute the costs. Computation: The number of each item to be purchased X the cost per item.
D55: # of Items | F55: Unit Cost | J55: Total Cost | K55: Non-Federal Contribution | L55: Federal Request
J57: =CEILING(D57*F57,1) -> $0 | L57: =IF(J57-K57<0,0,J57-K57) -> $0
J58: =CEILING(D58*F58,1) -> $0 | L58: =IF(J58-K58<0,0,J58-K58) -> $0
J59: =CEILING(D59*F59,1) -> $0 | L59: =IF(J59-K59<0,0,J59-K59) -> $0
A60: Total(s) | J60: =SUM(J57:J59) -> $0 | K60: =SUM(K57:K59) -> $0 | L60: =SUM(L57:L59) -> $0
A61: Narrative
A64: F. Construction
A65: Purpose | B65: Description of Work | D65: Computation
A66: Provide the purpose of the construction | B66: Describe the construction project(s) | D66: Compute the costs (e.g., the number of each item to be purchased X the cost per item)
D67: # of Items | F67: Cost | J67: Total Cost | K67: Non-Federal Contribution | L67: Federal Request
J69: =CEILING(D69*F69,1) -> $0 | L69: =IF(J69-K69<0,0,J69-K69) -> $0
J70: =CEILING(D70*F70,1) -> $0 | L70: =IF(J70-K70<0,0,J70-K70) -> $0
J71: =CEILING(D71*F71,1) -> $0 | L71: =IF(J71-K71<0,0,J71-K71) -> $0
A72: Total(s) | J72: =SUM(J69:J71) -> $0 | K72: =SUM(K69:K71) -> $0 | L72: =SUM(L69:L71) -> $0
A73: Narrative
A76: G. Subawards (Subgrants)
A77: Description | C77: Purpose | H77: Consultant?
A78: Provide a description of the activities to be carried out by subrecipients. | C78: Describe the purpose of the subaward (subgrant) | H78: Is the subaward for a consultant? If yes, use the section below to explain associated travel expenses included in the cost.
J79: Total Cost | K79: Non-Federal Contribution | L79: Federal Request
L81: =IF(J81-K81<0,0,J81-K81) -> $0
L82: =IF(J82-K82<0,0,J82-K82) -> $0
L83: =IF(J83-K83<0,0,J83-K83) -> $0
A84: Total(s) | J84: =SUM(J81:J83)+J93 -> $0 | K84: =SUM(K81:K83)+K93 -> $0 | L84: =SUM(L81:L83)+L93 -> $0
A85: Consultant Travel (if necessary)
A86: Purpose of Travel | B86: Location | D86: Type of Expense | G86: Computation
A87: Indicate the purpose of each trip or type of trip (training, advisory group meeting) | B87: Indicate the travel destination. | D87: Hotel, airfare, per diem | G87: Compute the cost of each type of expense X the number of people traveling.
G88: Cost | H88: Duration or Distance | I88: # of Staff | J88: Total Cost | K88: Non-Federal Contribution | L88: Federal Request
J90: =CEILING(G90*H90*I90,1) -> $0 | L90: =IF(J90-K90<0,0,J90-K90) -> $0
J91: =CEILING(G91*H91*I91,1) -> $0 | L91: =IF(J91-K91<0,0,J91-K91) -> $0
J92: =CEILING(G92*H92*I92,1) -> $0 | L92: =IF(J92-K92<0,0,J92-K92) -> $0
A93: Total | J93: =SUM(J90:J92) -> $0 | K93: =SUM(K90:K92) -> $0 | L93: =SUM(L90:L92) -> $0
A94: Narrative
A97: H. Procurement Contracts
A98: Description | C98: Purpose | H98: Consultant?
A99: Provide a description of the products or services to be procured by contract and an estimate of the costs. Applicants are encouraged to promote free and open competition in awarding contracts. A separate justification must be provided for sole source procurements in excess of the Simplified Acquisition Threshold (currently $150,000). | C99: Describe the purpose of the contract | H99: Is the subaward for a consultant? If yes, use the section below to explain associated travel expenses included in the cost.
J100: Total Cost | K100: Non-Federal Contribution | L100: Federal Request
L102: =IF(J102-K102<0,0,J102-K102) -> $0
L103: =IF(J103-K103<0,0,J103-K103) -> $0
L104: =IF(J104-K104<0,0,J104-K104) -> $0
A105: Total(s) | J105: =SUM(J102:J104)+J114 -> $0 | K105: =SUM(K102:K104)+K114 -> $0 | L105: =SUM(L102:L104)+L114 -> $0
A106: Consultant Travel (if necessary)
A107: Purpose of Travel | B107: Location | D107: Type of Expense | G107: Computation
A108: Indicate the purpose of each trip or type of trip (training, advisory group meeting) | B108: Indicate the travel destination. | D108: Hotel, airfare, per diem | G108: Compute the cost of each type of expense X the number of people traveling.
G109: Cost | H109: Duration or Distance | I109: # of Staff | J109: Total Cost | K109: Non-Federal Contribution | L109: Federal Request
J111: =CEILING(G111*H111*I111,1) -> $0 | L111: =IF(J111-K111<0,0,J111-K111) -> $0
J112: =CEILING(G112*H112*I112,1) -> $0 | L112: =IF(J112-K112<0,0,J112-K112) -> $0
J113: =CEILING(G113*H113*I113,1) -> $0 | L113: =IF(J113-K113<0,0,J113-K113) -> $0
A114: Total | J114: =SUM(J111:J113) -> $0 | K114: =SUM(K111:K113) -> $0 | L114: =SUM(L111:L113) -> $0
A115: Narrative
A118: I. Other Costs
A119: Description | C119: Computation
A120: List and describe items that will be paid with grants funds (e.g. rent, reproduction, telephone, janitorial, or security services, and investigative or confidential funds). | C120: Show the basis for computation
C121: Quantity | E121: Basis | F121: Cost | H121: Length of Time | J121: Total Cost | K121: Non-Federal Contribution | L121: Federal Request
J123: =CEILING(C123*F123*H123,1) -> $0 | L123: =IF(J123-K123<0,0,J123-K123) -> $0
J124: =CEILING(C124*F124*H124,1) -> $0 | L124: =IF(J124-K124<0,0,J124-K124) -> $0
J125: =CEILING(C125*F125*H125,1) -> $0 | L125: =IF(J125-K125<0,0,J125-K125) -> $0
A126: Total(s) | J126: =SUM(J123:J125) -> $0 | K126: =SUM(K123:K125) -> $0 | L126: =SUM(L123:L125) -> $0
A127: Narrative
A130: J. Indirect Costs
A131: Description | D131: Computation
A132: Describe what the approved rate is and how it is applied. | D132: Compute the indirect costs for those portions of the program which allow such costs.
D133: Base | F133: Indirect Cost Rate | J133: Total Cost | K133: Non-Federal Contribution | L133: Federal Request
J135: =CEILING(D135*F135,1) -> $0 | L135: =IF(J135-K135<0,0,J135-K135) -> $0
J136: =CEILING(D136*F136,1) -> $0 | L136: =IF(J136-K136<0,0,J136-K136) -> $0
J137: =CEILING(D137*F137,1) -> $0 | L137: =IF(J137-K137<0,0,J137-K137) -> $0
A138: Total(s) | J138: =SUM(J135:J137) -> $0 | K138: =SUM(K135:K137) -> $0 | L138: =SUM(L135:L137) -> $0
A139: Narrative

Sheet Budget Detail - Year 2
A1: ='Budget Sheet Instructions'!A18 -> Budget Detail - Year 2
A2: Does this budget contain conference costs which is defined broadly to include meetings, retreats, seminars, symposia, and training activities? - Y/N
A3: (DOJ Financial Guide, Section 3.10)
A4: A. Personnel
A5: Name | B5: Position | C5: Computation
A6: List each name, if known. | B6: List each position, if known. | C6: Show annual salary rate & amount of time devoted to the project for each name/position.
C7: Salary | E7: Rate | F7: Time Worked (# of hours, days, months, years) | H7: Percentage of Time | J7: Total Cost | K7: Non-Federal Contribution | L7: Federal Request
J9: =CEILING(C9*F9*H9,1) -> $0 | L9: =IF(J9-K9<0,0,J9-K9) -> $0
J10: =CEILING(C10*F10*H10,1) -> $0 | L10: =IF(J10-K10<0,0,J10-K10) -> $0
J11: =CEILING(C11*F11*H11,1) -> $0 | L11: =IF(J11-K11<0,0,J11-K11) -> $0
A12: Total(s) | J12: =SUM(J9:J11) -> $0 | K12: =SUM(K9:K11) -> $0 | L12: =SUM(L9:L11) -> $0
A13: Narrative
A16: B. Fringe Benefits
A17: Name | D17: Computation
A18: List each grant-supported position receiving fringe benefits. | D18: Show the basis for computation.
D19: Base | F19: Rate | J19: Total Cost | K19: Non-Federal Contribution | L19: Federal Request
J21: =CEILING(D21*F21,1) -> $0 | L21: =IF(J21-K21<0,0,J21-K21) -> $0
J22: =CEILING(D22*F22,1) -> $0 | L22: =IF(J22-K22<0,0,J22-K22) -> $0
J23: =CEILING(D23*F23,1) -> $0 | L23: =IF(J23-K23<0,0,J23-K23) -> $0
A24: Total(s) | J24: =SUM(J21:J23) -> $0 | K24: =SUM(K21:K23) -> $0 | L24: =SUM(L21:L23) -> $0
A25: Narrative
A28: C. Travel
A29: Purpose of Travel | B29: Location | D29: Type of Expense | E29: Basis | F29: Computation
A30: Indicate the purpose of each trip or type of trip (training, advisory group meeting) | B30: Indicate the travel destination. | D30: Lodging, Meals, Etc. | E30: Per day, mile, trip, Etc. | F30: Compute the cost of each type of expense X the number of people traveling.
F31: Cost | G31: Quantity | H31: # of Staff | I31: # of Trips | J31: Total Cost | K31: Non-Federal Contribution | L31: Federal Request
E33: =IF((D33="Lodging"),"Night",IF((D33="Meals"),"Day",IF((D33="Mileage"),"Mile",IF((D33="Transportation"),"Round-trip","N/A")))) -> N/A | J33: =CEILING(F33*G33*H33*I33,1) -> $0 | L33: =IF(J33-K33<0,0,J33-K33) -> $0
E34: =IF((D34="Lodging"),"Night",IF((D34="Meals"),"Day",IF((D34="Mileage"),"Mile",IF((D34="Transportation"),"Round-trip","N/A")))) -> N/A | J34: =CEILING(F34*G34*H34*I34,1) -> $0 | L34: =IF(J34-K34<0,0,J34-K34) -> $0
E35: =IF((D35="Lodging"),"Night",IF((D35="Meals"),"Day",IF((D35="Mileage"),"Mile",IF((D35="Transportation"),"Round-trip","N/A")))) -> N/A | J35: =CEILING(F35*G35*H35*I35,1) -> $0 | L35: =IF(J35-K35<0,0,J35-K35) -> $0
A36: Total(s) | J36: =SUM(J33:J35) -> $0 | K36: =SUM(K33:K35) -> $0 | L36: =SUM(L33:L35) -> $0
A37: Narrative
A40: D. Equipment
A41: Item | D41: Computation
A42: List and describe each item of equipment that will be purchased | D42: Compute the cost (e.g., the number of each item to be purchased X the cost per item)
D43: # of Items | F43: Unit Cost | J43: Total Cost | K43: Non-Federal Contribution | L43: Federal Request
J45: =CEILING(D45*F45,1) -> $0 | L45: =IF(J45-K45<0,0,J45-K45) -> $0
J46: =CEILING(D46*F46,1) -> $0 | L46: =IF(J46-K46<0,0,J46-K46) -> $0
J47: =CEILING(D47*F47,1) -> $0 | L47: =IF(J47-K47<0,0,J47-K47) -> $0
A48: Total(s) | J48: =SUM(J45:J47) -> $0 | K48: =SUM(K45:K47) -> $0 | L48: =SUM(L45:L47) -> $0
A49: Narrative
A52: E. Supplies
A53: Supply Items | D53: Computation
A54: Provide a list of the types of items to be purchased with grant funds. | D54: Describe the item and the compute the costs. Computation: The number of each item to be purchased X the cost per item.
D55: # of Items | F55: Unit Cost | J55: Total Cost | K55: Non-Federal Contribution | L55: Federal Request
J57: =CEILING(D57*F57,1) -> $0 | L57: =IF(J57-K57<0,0,J57-K57) -> $0
J58: =CEILING(D58*F58,1) -> $0 | L58: =IF(J58-K58<0,0,J58-K58) -> $0
J59: =CEILING(D59*F59,1) -> $0 | L59: =IF(J59-K59<0,0,J59-K59) -> $0
A60: Total(s) | J60: =SUM(J57:J59) -> $0 | K60: =SUM(K57:K59) -> $0 | L60: =SUM(L57:L59) -> $0
A61: Narrative
A64: F. Construction
A65: Purpose | B65: Description of Work | D65: Computation
A66: Provide the purpose of the construction | B66: Describe the construction project(s) | D66: Compute the costs (e.g., the number of each item to be purchased X the cost per item)
D67: # of Items | F67: Cost | J67: Total Cost | K67: Non-Federal Contribution | L67: Federal Request
J69: =CEILING(D69*F69,1) -> $0 | L69: =IF(J69-K69<0,0,J69-K69) -> $0
J70: =CEILING(D70*F70,1) -> $0 | L70: =IF(J70-K70<0,0,J70-K70) -> $0
J71: =CEILING(D71*F71,1) -> $0 | L71: =IF(J71-K71<0,0,J71-K71) -> $0
A72: Total(s) | J72: =SUM(J69:J71) -> $0 | K72: =SUM(K69:K71) -> $0 | L72: =SUM(L69:L71) -> $0
A73: Narrative
A76: G. Subawards (Subgrants)
A77: Description | C77: Purpose | H77: Consultant?
A78: Provide a description of the activities to be carried out by subrecipients. | C78: Describe the purpose of the subaward (subgrant) | H78: Is the subaward for a consultant? If yes, use the section below to explain associated travel expenses included in the cost.
J79: Total Cost | K79: Non-Federal Contribution | L79: Federal Request
L81: =IF(J81-K81<0,0,J81-K81) -> $0
L82: =IF(J82-K82<0,0,J82-K82) -> $0
L83: =IF(J83-K83<0,0,J83-K83) -> $0
A84: Total(s) | J84: =SUM(J81:J83)+J93 -> $0 | K84: =SUM(K81:K83)+K93 -> $0 | L84: =SUM(L81:L83)+L93 -> $0
A85: Consultant Travel (if necessary)
A86: Purpose of Travel | B86: Location | D86: Type of Expense | G86: Computation
A87: Indicate the purpose of each trip or type of trip (training, advisory group meeting) | B87: Indicate the travel destination. | D87: Hotel, airfare, per diem | G87: Compute the cost of each type of expense X the number of people traveling.
G88: Cost | H88: Duration or Distance | I88: # of Staff | J88: Total Cost | K88: Non-Federal Contribution | L88: Federal Request
J90: =CEILING(G90*H90*I90,1) -> $0 | L90: =IF(J90-K90<0,0,J90-K90) -> $0
J91: =CEILING(G91*H91*I91,1) -> $0 | L91: =IF(J91-K91<0,0,J91-K91) -> $0
J92: =CEILING(G92*H92*I92,1) -> $0 | L92: =IF(J92-K92<0,0,J92-K92) -> $0
A93: Total | J93: =SUM(J90:J92) -> $0 | K93: =SUM(K90:K92) -> $0 | L93: =SUM(L90:L92) -> $0
A94: Narrative
A97: H. Procurement Contracts
A98: Description | C98: Purpose | H98: Consultant?
A99: Provide a description of the products or services to be procured by contract and an estimate of the costs. Applicants are encouraged to promote free and open competition in awarding contracts. A separate justification must be provided for sole source procurements in excess of the Simplified Acquisition Threshold (currently $150,000). | C99: Describe the purpose of the contract | H99: Is the subaward for a consultant? If yes, use the section below to explain associated travel expenses included in the cost.
J100: Total Cost | K100: Non-Federal Contribution | L100: Federal Request
L102: =IF(J102-K102<0,0,J102-K102) -> $0
L103: =IF(J103-K103<0,0,J103-K103) -> $0
L104: =IF(J104-K104<0,0,J104-K104) -> $0
A105: Total(s) | J105: =SUM(J102:J104)+J114 -> $0 | K105: =SUM(K102:K104)+K114 -> $0 | L105: =SUM(L102:L104)+L114 -> $0
A106: Consultant Travel (if necessary)
A107: Purpose of Travel | B107: Location | D107: Type of Expense | G107: Computation
A108: Indicate the purpose of each trip or type of trip (training, advisory group meeting) | B108: Indicate the travel destination. | D108: Hotel, airfare, per diem | G108: Compute the cost of each type of expense X the number of people traveling.
G109: Cost | H109: Duration or Distance | I109: # of Staff | J109: Total Cost | K109: Non-Federal Contribution | L109: Federal Request
J111: =CEILING(G111*H111*I111,1) -> $0 | L111: =IF(J111-K111<0,0,J111-K111) -> $0
J112: =CEILING(G112*H112*I112,1) -> $0 | L112: =IF(J112-K112<0,0,J112-K112) -> $0
J113: =CEILING(G113*H113*I113,1) -> $0 | L113: =IF(J113-K113<0,0,J113-K113) -> $0
A114: Total | J114: =SUM(J111:J113) -> $0 | K114: =SUM(K111:K113) -> $0 | L114: =SUM(L111:L113) -> $0
A115: Narrative
A118: I. Other Costs
A119: Description | C119: Computation
A120: List and describe items that will be paid with grants funds (e.g. rent, reproduction, telephone, janitorial, or security services, and investigative or confidential funds). | C120: Show the basis for computation
C121: Quantity | E121: Basis | F121: Cost | H121: Length of Time | J121: Total Cost | K121: Non-Federal Contribution | L121: Federal Request
J123: =CEILING(C123*F123*H123,1) -> $0 | L123: =IF(J123-K123<0,0,J123-K123) -> $0
J124: =CEILING(C124*F124*H124,1) -> $0 | L124: =IF(J124-K124<0,0,J124-K124) -> $0
J125: =CEILING(C125*F125*H125,1) -> $0 | L125: =IF(J125-K125<0,0,J125-K125) -> $0
A126: Total(s) | J126: =SUM(J123:J125) -> $0 | K126: =SUM(K123:K125) -> $0 | L126: =SUM(L123:L125) -> $0
A127: Narrative
A130: J. Indirect Costs
A131: Description | D131: Computation
A132: Describe what the approved rate is and how it is applied. | D132: Compute the indirect costs for those portions of the program which allow such costs.
D133: Base | F133: Indirect Cost Rate | J133: Total Cost | K133: Non-Federal Contribution | L133: Federal Request
J135: =CEILING(D135*F135,1) -> $0 | L135: =IF(J135-K135<0,0,J135-K135) -> $0
J136: =CEILING(D136*F136,1) -> $0 | L136: =IF(J136-K136<0,0,J136-K136) -> $0
J137: =CEILING(D137*F137,1) -> $0 | L137: =IF(J137-K137<0,0,J137-K137) -> $0
A138: Total(s) | J138: =SUM(J135:J137) -> $0 | K138: =SUM(K135:K137) -> $0 | L138: =SUM(L135:L137) -> $0
A139: Narrative

Sheet Budget Detail - Year 3
A1: ='Budget Sheet Instructions'!A19 -> Budget Detail - Year 3
A2: Does this budget contain conference costs which is defined broadly to include meetings, retreats, seminars, symposia, and training activities? - Y/N
A3: (DOJ Financial Guide, Section 3.10)
A4: A. Personnel
A5: Name | B5: Position | C5: Computation
A6: List each name, if known. | B6: List each position, if known. | C6: Show annual salary rate & amount of time devoted to the project for each name/position.
C7: Salary | E7: Rate | F7: Time Worked (# of hours, days, months, years) | H7: Percentage of Time | J7: Total Cost | K7: Non-Federal Contribution | L7: Federal Request
J9: =CEILING(C9*F9*H9,1) -> $0 | L9: =IF(J9-K9<0,0,J9-K9) -> $0
J10: =CEILING(C10*F10*H10,1) -> $0 | L10: =IF(J10-K10<0,0,J10-K10) -> $0
J11: =CEILING(C11*F11*H11,1) -> $0 | L11: =IF(J11-K11<0,0,J11-K11) -> $0
A12: Total(s) | J12: =SUM(J9:J11) -> $0 | K12: =SUM(K9:K11) -> $0 | L12: =SUM(L9:L11) -> $0
A13: Narrative
A16: B. Fringe Benefits
A17: Name | D17: Computation
A18: List each grant-supported position receiving fringe benefits. | D18: Show the basis for computation.
D19: Base | F19: Rate | J19: Total Cost | K19: Non-Federal Contribution | L19: Federal Request
J21: =CEILING(D21*F21,1) -> $0 | L21: =IF(J21-K21<0,0,J21-K21) -> $0
J22: =CEILING(D22*F22,1) -> $0 | L22: =IF(J22-K22<0,0,J22-K22) -> $0
J23: =CEILING(D23*F23,1) -> $0 | L23: =IF(J23-K23<0,0,J23-K23) -> $0
A24: Total(s) | J24: =SUM(J21:J23) -> $0 | K24: =SUM(K21:K23) -> $0 | L24: =SUM(L21:L23) -> $0
A25: Narrative
A28: C. Travel
A29: Purpose of Travel | B29: Location | D29: Type of Expense | E29: Basis | F29: Computation
A30: Indicate the purpose of each trip or type of trip (training, advisory group meeting) | B30: Indicate the travel destination. | D30: Lodging, Meals, Etc. | E30: Per day, mile, trip, Etc. | F30: Compute the cost of each type of expense X the number of people traveling.
F31: Cost | G31: Quantity | H31: # of Staff | I31: # of Trips | J31: Total Cost | K31: Non-Federal Contribution | L31: Federal Request
E33: =IF((D33="Lodging"),"Night",IF((D33="Meals"),"Day",IF((D33="Mileage"),"Mile",IF((D33="Transportation"),"Round-trip","N/A")))) -> N/A | J33: =CEILING(F33*G33*H33*I33,1) -> $0 | L33: =IF(J33-K33<0,0,J33-K33) -> $0
E34: =IF((D34="Lodging"),"Night",IF((D34="Meals"),"Day",IF((D34="Mileage"),"Mile",IF((D34="Transportation"),"Round-trip","N/A")))) -> N/A | J34: =CEILING(F34*G34*H34*I34,1) -> $0 | L34: =IF(J34-K34<0,0,J34-K34) -> $0
E35: =IF((D35="Lodging"),"Night",IF((D35="Meals"),"Day",IF((D35="Mileage"),"Mile",IF((D35="Transportation"),"Round-trip","N/A")))) -> N/A | J35: =CEILING(F35*G35*H35*I35,1) -> $0 | L35: =IF(J35-K35<0,0,J35-K35) -> $0
A36: Total(s) | J36: =SUM(J33:J35) -> $0 | K36: =SUM(K33:K35) -> $0 | L36: =SUM(L33:L35) -> $0
A37: Narrative
A40: D. Equipment
A41: Item | D41: Computation
A42: List and describe each item of equipment that will be purchased | D42: Compute the cost (e.g., the number of each item to be purchased X the cost per item)
D43: # of Items | F43: Unit Cost | J43: Total Cost | K43: Non-Federal Contribution | L43: Federal Request
J45: =CEILING(D45*F45,1) -> $0 | L45: =IF(J45-K45<0,0,J45-K45) -> $0
J46: =CEILING(D46*F46,1) -> $0 | L46: =IF(J46-K46<0,0,J46-K46) -> $0
J47: =CEILING(D47*F47,1) -> $0 | L47: =IF(J47-K47<0,0,J47-K47) -> $0
A48: Total(s) | J48: =SUM(J45:J47) -> $0 | K48: =SUM(K45:K47) -> $0 | L48: =SUM(L45:L47) -> $0
A49: Narrative
A52: E. Supplies
A53: Supply Items | D53: Computation
A54: Provide a list of the types of items to be purchased with grant funds. | D54: Describe the item and the compute the costs. Computation: The number of each item to be purchased X the cost per item.
D55: # of Items | F55: Unit Cost | J55: Total Cost | K55: Non-Federal Contribution | L55: Federal Request
J57: =CEILING(D57*F57,1) -> $0 | L57: =IF(J57-K57<0,0,J57-K57) -> $0
J58: =CEILING(D58*F58,1) -> $0 | L58: =IF(J58-K58<0,0,J58-K58) -> $0
J59: =CEILING(D59*F59,1) -> $0 | L59: =IF(J59-K59<0,0,J59-K59) -> $0
A60: Total(s) | J60: =SUM(J57:J59) -> $0 | K60: =SUM(K57:K59) -> $0 | L60: =SUM(L57:L59) -> $0
A61: Narrative
A64: F. Construction
A65: Purpose | B65: Description of Work | D65: Computation
A66: Provide the purpose of the construction | B66: Describe the construction project(s) | D66: Compute the costs (e.g., the number of each item to be purchased X the cost per item)
D67: # of Items | F67: Cost | J67: Total Cost | K67: Non-Federal Contribution | L67: Federal Request
J69: =CEILING(D69*F69,1) -> $0 | L69: =IF(J69-K69<0,0,J69-K69) -> $0
J70: =CEILING(D70*F70,1) -> $0 | L70: =IF(J70-K70<0,0,J70-K70) -> $0
J71: =CEILING(D71*F71,1) -> $0 | L71: =IF(J71-K71<0,0,J71-K71) -> $0
A72: Total(s) | J72: =SUM(J69:J71) -> $0 | K72: =SUM(K69:K71) -> $0 | L72: =SUM(L69:L71) -> $0
A73: Narrative
A76: G. Subawards (Subgrants)
A77: Description | C77: Purpose | H77: Consultant?
A78: Provide a description of the activities to be carried out by subrecipients. | C78: Describe the purpose of the subaward (subgrant) | H78: Is the subaward for a consultant? If yes, use the section below to explain associated travel expenses included in the cost.
J79: Total Cost | K79: Non-Federal Contribution | L79: Federal Request
L81: =IF(J81-K81<0,0,J81-K81) -> $0
L82: =IF(J82-K82<0,0,J82-K82) -> $0
L83: =IF(J83-K83<0,0,J83-K83) -> $0
A84: Total(s) | J84: =SUM(J81:J83)+J93 -> $0 | K84: =SUM(K81:K83)+K93 -> $0 | L84: =SUM(L81:L83)+L93 -> $0
A85: Consultant Travel (if necessary)
A86: Purpose of Travel | B86: Location | D86: Type of Expense | G86: Computation
A87: Indicate the purpose of each trip or type of trip (training, advisory group meeting) | B87: Indicate the travel destination. | D87: Hotel, airfare, per diem | G87: Compute the cost of each type of expense X the number of people traveling.
G88: Cost | H88: Duration or Distance | I88: # of Staff | J88: Total Cost | K88: Non-Federal Contribution | L88: Federal Request
J90: =CEILING(G90*H90*I90,1) -> $0 | L90: =IF(J90-K90<0,0,J90-K90) -> $0
J91: =CEILING(G91*H91*I91,1) -> $0 | L91: =IF(J91-K91<0,0,J91-K91) -> $0
J92: =CEILING(G92*H92*I92,1) -> $0 | L92: =IF(J92-K92<0,0,J92-K92) -> $0
A93: Total | J93: =SUM(J90:J92) -> $0 | K93: =SUM(K90:K92) -> $0 | L93: =SUM(L90:L92) -> $0
A94: Narrative
A97: H. Procurement Contracts
A98: Description | C98: Purpose | H98: Consultant?
A99: Provide a description of the products or services to be procured by contract and an estimate of the costs. Applicants are encouraged to promote free and open competition in awarding contracts. A separate justification must be provided for sole source procurements in excess of the Simplified Acquisition Threshold (currently $150,000). | C99: Describe the purpose of the contract | H99: Is the subaward for a consultant? If yes, use the section below to explain associated travel expenses included in the cost.
J100: Total Cost | K100: Non-Federal Contribution | L100: Federal Request
L102: =IF(J102-K102<0,0,J102-K102) -> $0
L103: =IF(J103-K103<0,0,J103-K103) -> $0
L104: =IF(J104-K104<0,0,J104-K104) -> $0
A105: Total(s) | J105: =SUM(J102:J104)+J114 -> $0 | K105: =SUM(K102:K104)+K114 -> $0 | L105: =SUM(L102:L104)+L114 -> $0
A106: Consultant Travel (if necessary)
A107: Purpose of Travel | B107: Location | D107: Type of Expense | G107: Computation
A108: Indicate the purpose of each trip or type of trip (training, advisory group meeting) | B108: Indicate the travel destination. | D108: Hotel, airfare, per diem | G108: Compute the cost of each type of expense X the number of people traveling.
G109: Cost | H109: Duration or Distance | I109: # of Staff | J109: Total Cost | K109: Non-Federal Contribution | L109: Federal Request
J111: =CEILING(G111*H111*I111,1) -> $0 | L111: =IF(J111-K111<0,0,J111-K111) -> $0
J112: =CEILING(G112*H112*I112,1) -> $0 | L112: =IF(J112-K112<0,0,J112-K112) -> $0
J113: =CEILING(G113*H113*I113,1) -> $0 | L113: =IF(J113-K113<0,0,J113-K113) -> $0
A114: Total | J114: =SUM(J111:J113) -> $0 | K114: =SUM(K111:K113) -> $0 | L114: =SUM(L111:L113) -> $0
A115: Narrative
A118: I. Other Costs
A119: Description | C119: Computation
A120: List and describe items that will be paid with grants funds (e.g. rent, reproduction, telephone, janitorial, or security services, and investigative or confidential funds). | C120: Show the basis for computation
C121: Quantity | E121: Basis | F121: Cost | H121: Length of Time | J121: Total Cost | K121: Non-Federal Contribution | L121: Federal Request
J123: =CEILING(C123*F123*H123,1) -> $0 | L123: =IF(J123-K123<0,0,J123-K123) -> $0
J124: =CEILING(C124*F124*H124,1) -> $0 | L124: =IF(J124-K124<0,0,J124-K124) -> $0
J125: =CEILING(C125*F125*H125,1) -> $0 | L125: =IF(J125-K125<0,0,J125-K125) -> $0
A126: Total(s) | J126: =SUM(J123:J125) -> $0 | K126: =SUM(K123:K125) -> $0 | L126: =SUM(L123:L125) -> $0
A127: Narrative
A130: J. Indirect Costs
A131: Description | D131: Computation
A132: Describe what the approved rate is and how it is applied. | D132: Compute the indirect costs for those portions of the program which allow such costs.
D133: Base | F133: Indirect Cost Rate | J133: Total Cost | K133: Non-Federal Contribution | L133: Federal Request
J135: =CEILING(D135*F135,1) -> $0 | L135: =IF(J135-K135<0,0,J135-K135) -> $0
J136: =CEILING(D136*F136,1) -> $0 | L136: =IF(J136-K136<0,0,J136-K136) -> $0
J137: =CEILING(D137*F137,1) -> $0 | L137: =IF(J137-K137<0,0,J137-K137) -> $0
A138: Total(s) | J138: =SUM(J135:J137) -> $0 | K138: =SUM(K135:K137) -> $0 | L138: =SUM(L135:L137) -> $0
A139: Narrative

Sheet Budget Detail - Year 4
A1: ='Budget Sheet Instructions'!A20 -> Budget Detail - Year 4
A2: Does this budget contain conference costs which is defined broadly to include meetings, retreats, seminars, symposia, and training activities? - Y/N
A3: (DOJ Financial Guide, Section 3.10)
A4: A. Personnel
A5: Name | B5: Position | C5: Computation
A6: List each name, if known. | B6: List each position, if known. | C6: Show annual salary rate & amount of time devoted to the project for each name/position.
C7: Salary | E7: Rate | F7: Time Worked (# of hours, days, months, years) | H7: Percentage of Time | J7: Total Cost | K7: Non-Federal Contribution | L7: Federal Request
J9: =CEILING(C9*F9*H9,1) -> $0 | L9: =IF(J9-K9<0,0,J9-K9) -> $0
J10: =CEILING(C10*F10*H10,1) -> $0 | L10: =IF(J10-K10<0,0,J10-K10) -> $0
J11: =CEILING(C11*F11*H11,1) -> $0 | L11: =IF(J11-K11<0,0,J11-K11) -> $0
A12: Total(s) | J12: =SUM(J9:J11) -> $0 | K12: =SUM(K9:K11) -> $0 | L12: =SUM(L9:L11) -> $0
A13: Narrative
A16: B. Fringe Benefits
A17: Name | D17: Computation
A18: List each grant-supported position receiving fringe benefits. | D18: Show the basis for computation.
D19: Base | F19: Rate | J19: Total Cost | K19: Non-Federal Contribution | L19: Federal Request
J21: =CEILING(D21*F21,1) -> $0 | L21: =IF(J21-K21<0,0,J21-K21) -> $0
J22: =CEILING(D22*F22,1) -> $0 | L22: =IF(J22-K22<0,0,J22-K22) -> $0
J23: =CEILING(D23*F23,1) -> $0 | L23: =IF(J23-K23<0,0,J23-K23) -> $0
A24: Total(s) | J24: =SUM(J21:J23) -> $0 | K24: =SUM(K21:K23) -> $0 | L24: =SUM(L21:L23) -> $0
A25: Narrative
A28: C. Travel
A29: Purpose of Travel | B29: Location | D29: Type of Expense | E29: Basis | F29: Computation
A30: Indicate the purpose of each trip or type of trip (training, advisory group meeting) | B30: Indicate the travel destination. | D30: Lodging, Meals, Etc. | E30: Per day, mile, trip, Etc. | F30: Compute the cost of each type of expense X the number of people traveling.
F31: Cost | G31: Quantity | H31: # of Staff | I31: # of Trips | J31: Total Cost | K31: Non-Federal Contribution | L31: Federal Request
E33: =IF((D33="Lodging"),"Night",IF((D33="Meals"),"Day",IF((D33="Mileage"),"Mile",IF((D33="Transportation"),"Round-trip","N/A")))) -> N/A | J33: =CEILING(F33*G33*H33*I33,1) -> $0 | L33: =IF(J33-K33<0,0,J33-K33) -> $0
E34: =IF((D34="Lodging"),"Night",IF((D34="Meals"),"Day",IF((D34="Mileage"),"Mile",IF((D34="Transportation"),"Round-trip","N/A")))) -> N/A | J34: =CEILING(F34*G34*H34*I34,1) -> $0 | L34: =IF(J34-K34<0,0,J34-K34) -> $0
E35: =IF((D35="Lodging"),"Night",IF((D35="Meals"),"Day",IF((D35="Mileage"),"Mile",IF((D35="Transportation"),"Round-trip","N/A")))) -> N/A | J35: =CEILING(F35*G35*H35*I35,1) -> $0 | L35: =IF(J35-K35<0,0,J35-K35) -> $0
A36: Total(s) | J36: =SUM(J33:J35) -> $0 | K36: =SUM(K33:K35) -> $0 | L36: =SUM(L33:L35) -> $0
A37: Narrative
A40: D. Equipment
A41: Item | D41: Computation
A42: List and describe each item of equipment that will be purchased | D42: Compute the cost (e.g., the number of each item to be purchased X the cost per item)
D43: # of Items | F43: Unit Cost | J43: Total Cost | K43: Non-Federal Contribution | L43: Federal Request
J45: =CEILING(D45*F45,1) -> $0 | L45: =IF(J45-K45<0,0,J45-K45) -> $0
J46: =CEILING(D46*F46,1) -> $0 | L46: =IF(J46-K46<0,0,J46-K46) -> $0
J47: =CEILING(D47*F47,1) -> $0 | L47: =IF(J47-K47<0,0,J47-K47) -> $0
A48: Total(s) | J48: =SUM(J45:J47) -> $0 | K48: =SUM(K45:K47) -> $0 | L48: =SUM(L45:L47) -> $0
A49: Narrative
A52: E. Supplies
A53: Supply Items | D53: Computation
A54: Provide a list of the types of items to be purchased with grant funds. | D54: Describe the item and the compute the costs. Computation: The number of each item to be purchased X the cost per item.
D55: # of Items | F55: Unit Cost | J55: Total Cost | K55: Non-Federal Contribution | L55: Federal Request
J57: =CEILING(D57*F57,1) -> $0 | L57: =IF(J57-K57<0,0,J57-K57) -> $0
J58: =CEILING(D58*F58,1) -> $0 | L58: =IF(J58-K58<0,0,J58-K58) -> $0
J59: =CEILING(D59*F59,1) -> $0 | L59: =IF(J59-K59<0,0,J59-K59) -> $0
A60: Total(s) | J60: =SUM(J57:J59) -> $0 | K60: =SUM(K57:K59) -> $0 | L60: =SUM(L57:L59) -> $0
A61: Narrative
A64: F. Construction
A65: Purpose | B65: Description of Work | D65: Computation
A66: Provide the purpose of the construction | B66: Describe the construction project(s) | D66: Compute the costs (e.g., the number of each item to be purchased X the cost per item)
D67: # of Items | F67: Cost | J67: Total Cost | K67: Non-Federal Contribution | L67: Federal Request
J69: =CEILING(D69*F69,1) -> $0 | L69: =IF(J69-K69<0,0,J69-K69) -> $0
J70: =CEILING(D70*F70,1) -> $0 | L70: =IF(J70-K70<0,0,J70-K70) -> $0
J71: =CEILING(D71*F71,1) -> $0 | L71: =IF(J71-K71<0,0,J71-K71) -> $0
A72: Total(s) | J72: =SUM(J69:J71) -> $0 | K72: =SUM(K69:K71) -> $0 | L72: =SUM(L69:L71) -> $0
A73: Narrative
A76: G. Subawards (Subgrants)
A77: Description | C77: Purpose | H77: Consultant?
A78: Provide a description of the activities to be carried out by subrecipients. | C78: Describe the purpose of the subaward (subgrant) | H78: Is the subaward for a consultant? If yes, use the section below to explain associated travel expenses included in the cost.
J79: Total Cost | K79: Non-Federal Contribution | L79: Federal Request
L81: =IF(J81-K81<0,0,J81-K81) -> $0
L82: =IF(J82-K82<0,0,J82-K82) -> $0
L83: =IF(J83-K83<0,0,J83-K83) -> $0
A84: Total(s) | J84: =SUM(J81:J83)+J93 -> $0 | K84: =SUM(K81:K83)+K93 -> $0 | L84: =SUM(L81:L83)+L93 -> $0
A85: Consultant Travel (if necessary)
A86: Purpose of Travel | B86: Location | D86: Type of Expense | G86: Computation
A87: Indicate the purpose of each trip or type of trip (training, advisory group meeting) | B87: Indicate the travel destination. | D87: Hotel, airfare, per diem | G87: Compute the cost of each type of expense X the number of people traveling.
G88: Cost | H88: Duration or Distance | I88: # of Staff | J88: Total Cost | K88: Non-Federal Contribution | L88: Federal Request
J90: =CEILING(G90*H90*I90,1) -> $0 | L90: =IF(J90-K90<0,0,J90-K90) -> $0
J91: =CEILING(G91*H91*I91,1) -> $0 | L91: =IF(J91-K91<0,0,J91-K91) -> $0
J92: =CEILING(G92*H92*I92,1) -> $0 | L92: =IF(J92-K92<0,0,J92-K92) -> $0
A93: Total | J93: =SUM(J90:J92) -> $0 | K93: =SUM(K90:K92) -> $0 | L93: =SUM(L90:L92) -> $0
A94: Narrative
A97: H. Procurement Contracts
A98: Description | C98: Purpose | H98: Consultant?
A99: Provide a description of the products or services to be procured by contract and an estimate of the costs. Applicants are encouraged to promote free and open competition in awarding contracts. A separate justification must be provided for sole source procurements in excess of the Simplified Acquisition Threshold (currently $150,000). | C99: Describe the purpose of the contract | H99: Is the subaward for a consultant? If yes, use the section below to explain associated travel expenses included in the cost.
J100: Total Cost | K100: Non-Federal Contribution | L100: Federal Request
L102: =IF(J102-K102<0,0,J102-K102) -> $0
L103: =IF(J103-K103<0,0,J103-K103) -> $0
L104: =IF(J104-K104<0,0,J104-K104) -> $0
A105: Total(s) | J105: =SUM(J102:J104)+J114 -> $0 | K105: =SUM(K102:K104)+K114 -> $0 | L105: =SUM(L102:L104)+L114 -> $0
A106: Consultant Travel (if necessary)
A107: Purpose of Travel | B107: Location | D107: Type of Expense | G107: Computation
A108: Indicate the purpose of each trip or type of trip (training, advisory group meeting) | B108: Indicate the travel destination. | D108: Hotel, airfare, per diem | G108: Compute the cost of each type of expense X the number of people traveling.
G109: Cost | H109: Duration or Distance | I109: # of Staff | J109: Total Cost | K109: Non-Federal Contribution | L109: Federal Request
J111: =CEILING(G111*H111*I111,1) -> $0 | L111: =IF(J111-K111<0,0,J111-K111) -> $0
J112: =CEILING(G112*H112*I112,1) -> $0 | L112: =IF(J112-K112<0,0,J112-K112) -> $0
J113: =CEILING(G113*H113*I113,1) -> $0 | L113: =IF(J113-K113<0,0,J113-K113) -> $0
A114: Total | J114: =SUM(J111:J113) -> $0 | K114: =SUM(K111:K113) -> $0 | L114: =SUM(L111:L113) -> $0
A115: Narrative
A118: I. Other Costs
A119: Description | C119: Computation
A120: List and describe items that will be paid with grants funds (e.g. rent, reproduction, telephone, janitorial, or security services, and investigative or confidential funds). | C120: Show the basis for computation
C121: Quantity | E121: Basis | F121: Cost | H121: Length of Time | J121: Total Cost | K121: Non-Federal Contribution | L121: Federal Request
J123: =CEILING(C123*F123*H123,1) -> $0 | L123: =IF(J123-K123<0,0,J123-K123) -> $0
J124: =CEILING(C124*F124*H124,1) -> $0 | L124: =IF(J124-K124<0,0,J124-K124) -> $0
J125: =CEILING(C125*F125*H125,1) -> $0 | L125: =IF(J125-K125<0,0,J125-K125) -> $0
A126: Total(s) | J126: =SUM(J123:J125) -> $0 | K126: =SUM(K123:K125) -> $0 | L126: =SUM(L123:L125) -> $0
A127: Narrative
A130: J. Indirect Costs
A131: Description | D131: Computation
A132: Describe what the approved rate is and how it is applied. | D132: Compute the indirect costs for those portions of the program which allow such costs.
D133: Base | F133: Indirect Cost Rate | J133: Total Cost | K133: Non-Federal Contribution | L133: Federal Request
J135: =CEILING(D135*F135,1) -> $0 | L135: =IF(J135-K135<0,0,J135-K135) -> $0
J136: =CEILING(D136*F136,1) -> $0 | L136: =IF(J136-K136<0,0,J136-K136) -> $0
J137: =CEILING(D137*F137,1) -> $0 | L137: =IF(J137-K137<0,0,J137-K137) -> $0
A138: Total(s) | J138: =SUM(J135:J137) -> $0 | K138: =SUM(K135:K137) -> $0 | L138: =SUM(L135:L137) -> $0
A139: Narrative

Sheet Budget Detail - Year 5
A1: ='Budget Sheet Instructions'!A21 -> Budget Detail - Year 5
A2: Does this budget contain conference costs which is defined broadly to include meetings, retreats, seminars, symposia, and training activities? - Y/N
A3: (DOJ Financial Guide, Section 3.10)
A4: A. Personnel
A5: Name | B5: Position | C5: Computation
A6: List each name, if known. | B6: List each position, if known. | C6: Show annual salary rate & amount of time devoted to the project for each name/position.
C7: Salary | E7: Rate | F7: Time Worked (# of hours, days, months, years) | H7: Percentage of Time | J7: Total Cost | K7: Non-Federal Contribution | L7: Federal Request
J9: =CEILING(C9*F9*H9,1) -> $0 | L9: =IF(J9-K9<0,0,J9-K9) -> $0
J10: =CEILING(C10*F10*H10,1) -> $0 | L10: =IF(J10-K10<0,0,J10-K10) -> $0
J11: =CEILING(C11*F11*H11,1) -> $0 | L11: =IF(J11-K11<0,0,J11-K11) -> $0
A12: Total(s) | J12: =SUM(J9:J11) -> $0 | K12: =SUM(K9:K11) -> $0 | L12: =SUM(L9:L11) -> $0
A13: Narrative
A16: B. Fringe Benefits
A17: Name | D17: Computation
A18: List each grant-supported position receiving fringe benefits. | D18: Show the basis for computation.
D19: Base | F19: Rate | J19: Total Cost | K19: Non-Federal Contribution | L19: Federal Request
J21: =CEILING(D21*F21,1) -> $0 | L21: =IF(J21-K21<0,0,J21-K21) -> $0
J22: =CEILING(D22*F22,1) -> $0 | L22: =IF(J22-K22<0,0,J22-K22) -> $0
J23: =CEILING(D23*F23,1) -> $0 | L23: =IF(J23-K23<0,0,J23-K23) -> $0
A24: Total(s) | J24: =SUM(J21:J23) -> $0 | K24: =SUM(K21:K23) -> $0 | L24: =SUM(L21:L23) -> $0
A25: Narrative
A28: C. Travel
A29: Purpose of Travel | B29: Location | D29: Type of Expense | E29: Basis | F29: Computation
A30: Indicate the purpose of each trip or type of trip (training, advisory group meeting) | B30: Indicate the travel destination. | D30: Lodging, Meals, Etc. | E30: Per day, mile, trip, Etc. | F30: Compute the cost of each type of expense X the number of people traveling.
F31: Cost | G31: Quantity | H31: # of Staff | I31: # of Trips | J31: Total Cost | K31: Non-Federal Contribution | L31: Federal Request
E33: =IF((D33="Lodging"),"Night",IF((D33="Meals"),"Day",IF((D33="Mileage"),"Mile",IF((D33="Transportation"),"Round-trip","N/A")))) -> N/A | J33: =CEILING(F33*G33*H33*I33,1) -> $0 | L33: =IF(J33-K33<0,0,J33-K33) -> $0
E34: =IF((D34="Lodging"),"Night",IF((D34="Meals"),"Day",IF((D34="Mileage"),"Mile",IF((D34="Transportation"),"Round-trip","N/A")))) -> N/A | J34: =CEILING(F34*G34*H34*I34,1) -> $0 | L34: =IF(J34-K34<0,0,J34-K34) -> $0
E35: =IF((D35="Lodging"),"Night",IF((D35="Meals"),"Day",IF((D35="Mileage"),"Mile",IF((D35="Transportation"),"Round-trip","N/A")))) -> N/A | J35: =CEILING(F35*G35*H35*I35,1) -> $0 | L35: =IF(J35-K35<0,0,J35-K35) -> $0
A36: Total(s) | J36: =SUM(J33:J35) -> $0 | K36: =SUM(K33:K35) -> $0 | L36: =SUM(L33:L35) -> $0
A37: Narrative
A40: D. Equipment
A41: Item | D41: Computation
A42: List and describe each item of equipment that will be purchased | D42: Compute the cost (e.g., the number of each item to be purchased X the cost per item)
D43: # of Items | F43: Unit Cost | J43: Total Cost | K43: Non-Federal Contribution | L43: Federal Request
J45: =CEILING(D45*F45,1) -> $0 | L45: =IF(J45-K45<0,0,J45-K45) -> $0
J46: =CEILING(D46*F46,1) -> $0 | L46: =IF(J46-K46<0,0,J46-K46) -> $0
J47: =CEILING(D47*F47,1) -> $0 | L47: =IF(J47-K47<0,0,J47-K47) -> $0
A48: Total(s) | J48: =SUM(J45:J47) -> $0 | K48: =SUM(K45:K47) -> $0 | L48: =SUM(L45:L47) -> $0
A49: Narrative
A52: E. Supplies
A53: Supply Items | D53: Computation
A54: Provide a list of the types of items to be purchased with grant funds. | D54: Describe the item and the compute the costs. Computation: The number of each item to be purchased X the cost per item.
D55: # of Items | F55: Unit Cost | J55: Total Cost | K55: Non-Federal Contribution | L55: Federal Request
J57: =CEILING(D57*F57,1) -> $0 | L57: =IF(J57-K57<0,0,J57-K57) -> $0
J58: =CEILING(D58*F58,1) -> $0 | L58: =IF(J58-K58<0,0,J58-K58) -> $0
J59: =CEILING(D59*F59,1) -> $0 | L59: =IF(J59-K59<0,0,J59-K59) -> $0
A60: Total(s) | J60: =SUM(J57:J59) -> $0 | K60: =SUM(K57:K59) -> $0 | L60: =SUM(L57:L59) -> $0
A61: Narrative
A64: F. Construction
A65: Purpose | B65: Description of Work | D65: Computation
A66: Provide the purpose of the construction | B66: Describe the construction project(s) | D66: Compute the costs (e.g., the number of each item to be purchased X the cost per item)
D67: # of Items | F67: Cost | J67: Total Cost | K67: Non-Federal Contribution | L67: Federal Request
J69: =CEILING(D69*F69,1) -> $0 | L69: =IF(J69-K69<0,0,J69-K69) -> $0
J70: =CEILING(D70*F70,1) -> $0 | L70: =IF(J70-K70<0,0,J70-K70) -> $0
J71: =CEILING(D71*F71,1) -> $0 | L71: =IF(J71-K71<0,0,J71-K71) -> $0
A72: Total(s) | J72: =SUM(J69:J71) -> $0 | K72: =SUM(K69:K71) -> $0 | L72: =SUM(L69:L71) -> $0
A73: Narrative
A76: G. Subawards (Subgrants)
A77: Description | C77: Purpose | H77: Consultant?
A78: Provide a description of the activities to be carried out by subrecipients. | C78: Describe the purpose of the subaward (subgrant) | H78: Is the subaward for a consultant? If yes, use the section below to explain associated travel expenses included in the cost.
J79: Total Cost | K79: Non-Federal Contribution | L79: Federal Request
L81: =IF(J81-K81<0,0,J81-K81) -> $0
L82: =IF(J82-K82<0,0,J82-K82) -> $0
L83: =IF(J83-K83<0,0,J83-K83) -> $0
A84: Total(s) | J84: =SUM(J81:J83)+J93 -> $0 | K84: =SUM(K81:K83)+K93 -> $0 | L84: =SUM(L81:L83)+L93 -> $0
A85: Consultant Travel (if necessary)
A86: Purpose of Travel | B86: Location | D86: Type of Expense | G86: Computation
A87: Indicate the purpose of each trip or type of trip (training, advisory group meeting) | B87: Indicate the travel destination. | D87: Hotel, airfare, per diem | G87: Compute the cost of each type of expense X the number of people traveling.
G88: Cost | H88: Duration or Distance | I88: # of Staff | J88: Total Cost | K88: Non-Federal Contribution | L88: Federal Request
J90: =CEILING(G90*H90*I90,1) -> $0 | L90: =IF(J90-K90<0,0,J90-K90) -> $0
J91: =CEILING(G91*H91*I91,1) -> $0 | L91: =IF(J91-K91<0,0,J91-K91) -> $0
J92: =CEILING(G92*H92*I92,1) -> $0 | L92: =IF(J92-K92<0,0,J92-K92) -> $0
A93: Total | J93: =SUM(J90:J92) -> $0 | K93: =SUM(K90:K92) -> $0 | L93: =SUM(L90:L92) -> $0
A94: Narrative
A97: H. Procurement Contracts
A98: Description | C98: Purpose | H98: Consultant?
A99: Provide a description of the products or services to be procured by contract and an estimate of the costs. Applicants are encouraged to promote free and open competition in awarding contracts. A separate justification must be provided for sole source procurements in excess of the Simplified Acquisition Threshold (currently $150,000). | C99: Describe the purpose of the contract | H99: Is the subaward for a consultant? If yes, use the section below to explain associated travel expenses included in the cost.
J100: Total Cost | K100: Non-Federal Contribution | L100: Federal Request
L102: =IF(J102-K102<0,0,J102-K102) -> $0
L103: =IF(J103-K103<0,0,J103-K103) -> $0
L104: =IF(J104-K104<0,0,J104-K104) -> $0
A105: Total(s) | J105: =SUM(J102:J104)+J114 -> $0 | K105: =SUM(K102:K104)+K114 -> $0 | L105: =SUM(L102:L104)+L114 -> $0
A106: Consultant Travel (if necessary)
A107: Purpose of Travel | B107: Location | D107: Type of Expense | G107: Computation
A108: Indicate the purpose of each trip or type of trip (training, advisory group meeting) | B108: Indicate the travel destination. | D108: Hotel, airfare, per diem | G108: Compute the cost of each type of expense X the number of people traveling.
G109: Cost | H109: Duration or Distance | I109: # of Staff | J109: Total Cost | K109: Non-Federal Contribution | L109: Federal Request
J111: =CEILING(G111*H111*I111,1) -> $0 | L111: =IF(J111-K111<0,0,J111-K111) -> $0
J112: =CEILING(G112*H112*I112,1) -> $0 | L112: =IF(J112-K112<0,0,J112-K112) -> $0
J113: =CEILING(G113*H113*I113,1) -> $0 | L113: =IF(J113-K113<0,0,J113-K113) -> $0
A114: Total | J114: =SUM(J111:J113) -> $0 | K114: =SUM(K111:K113) -> $0 | L114: =SUM(L111:L113) -> $0
A115: Narrative
A118: I. Other Costs
A119: Description | C119: Computation
A120: List and describe items that will be paid with grants funds (e.g. rent, reproduction, telephone, janitorial, or security services, and investigative or confidential funds). | C120: Show the basis for computation
C121: Quantity | E121: Basis | F121: Cost | H121: Length of Time | J121: Total Cost | K121: Non-Federal Contribution | L121: Federal Request
J123: =CEILING(C123*F123*H123,1) -> $0 | L123: =IF(J123-K123<0,0,J123-K123) -> $0
J124: =CEILING(C124*F124*H124,1) -> $0 | L124: =IF(J124-K124<0,0,J124-K124) -> $0
J125: =CEILING(C125*F125*H125,1) -> $0 | L125: =IF(J125-K125<0,0,J125-K125) -> $0
A126: Total(s) | J126: =SUM(J123:J125) -> $0 | K126: =SUM(K123:K125) -> $0 | L126: =SUM(L123:L125) -> $0
A127: Narrative
A130: J. Indirect Costs
A131: Description | D131: Computation
A132: Describe what the approved rate is and how it is applied. | D132: Compute the indirect costs for those portions of the program which allow such costs.
D133: Base | F133: Indirect Cost Rate | J133: Total Cost | K133: Non-Federal Contribution | L133: Federal Request
J135: =CEILING(D135*F135,1) -> $0 | L135: =IF(J135-K135<0,0,J135-K135) -> $0
J136: =CEILING(D136*F136,1) -> $0 | L136: =IF(J136-K136<0,0,J136-K136) -> $0
J137: =CEILING(D137*F137,1) -> $0 | L137: =IF(J137-K137<0,0,J137-K137) -> $0
A138: Total(s) | J138: =SUM(J135:J137) -> $0 | K138: =SUM(K135:K137) -> $0 | L138: =SUM(L135:L137) -> $0
A139: Narrative

Sheet Budget Summary
A1: Budget Summary
A2: Note: Any errors detected on this page should be fixed on the corresponding Budget Detail tab.
B3: Year 1 | D3: Year 2 (if needed) | F3: Year 3 (if needed) | H3: Year 4 (if needed) | J3: Year 5 (if needed)
A4: Budget Category | B4: Federal Request | C4: Non-Federal Request | D4: Federal Request | E4: Non-Federal Request | F4: Federal Request | G4: Non-Federal Request | H4: Federal Request | I4: Non-Federal Request | J4: Federal Request | K4: Non-Federal Request | L4: Total(s)
A8: A. Personnel | B8: ='Budget Detail - Year 1'!L12 -> $0 | C8: ='Budget Detail - Year 1'!K12 -> $0 | D8: ='Budget Detail - Year 2'!L12 -> $0 | E8: ='Budget Detail - Year 2'!K12 -> $0 | F8: ='Budget Detail - Year 3'!L12 -> $0 | G8: ='Budget Detail - Year 3'!K12 -> $0 | H8: ='Budget Detail - Year 4'!L12 -> $0 | I8: ='Budget Detail - Year 4'!K12 -> $0 | J8: ='Budget Detail - Year 5'!L12 -> $0 | K8: ='Budget Detail - Year 5'!K12 -> $0 | L8: =SUM(B8:K8) -> $0
A9: B. Fringe Benefits | B9: ='Budget Detail - Year 1'!L24 -> $0 | C9: ='Budget Detail - Year 1'!K24 -> $0 | D9: ='Budget Detail - Year 2'!L24 -> $0 | E9: ='Budget Detail - Year 2'!K24 -> $0 | F9: ='Budget Detail - Year 3'!L24 -> $0 | G9: ='Budget Detail - Year 3'!K24 -> $0 | H9: ='Budget Detail - Year 4'!L24 -> $0 | I9: ='Budget Detail - Year 4'!K24 -> $0 | J9: ='Budget Detail - Year 5'!L24 -> $0 | K9: ='Budget Detail - Year 5'!K24 -> $0 | L9: $0
A10: C. Travel | B10: ='Budget Detail - Year 1'!L36 -> $0 | C10: ='Budget Detail - Year 1'!K36 -> $0 | D10: ='Budget Detail - Year 2'!L36 -> $0 | E10: ='Budget Detail - Year 2'!K36 -> $0 | F10: ='Budget Detail - Year 3'!L36 -> $0 | G10: ='Budget Detail - Year 3'!K36 -> $0 | H10: ='Budget Detail - Year 4'!L36 -> $0 | I10: ='Budget Detail - Year 4'!K36 -> $0 | J10: ='Budget Detail - Year 5'!L36 -> $0 | K10: ='Budget Detail - Year 5'!K36 -> $0 | L10: $0
A11: D. Equipment | B11: ='Budget Detail - Year 1'!L48 -> $0 | C11: ='Budget Detail - Year 1'!K48 -> $0 | D11: ='Budget Detail - Year 2'!L48 -> $0 | E11: ='Budget Detail - Year 2'!K48 -> $0 | F11: ='Budget Detail - Year 3'!L48 -> $0 | G11: ='Budget Detail - Year 3'!K48 -> $0 | H11: ='Budget Detail - Year 4'!L48 -> $0 | I11: ='Budget Detail - Year 4'!K48 -> $0 | J11: ='Budget Detail - Year 5'!L48 -> $0 | K11: ='Budget Detail - Year 5'!K48 -> $0 | L11: $0
A12: E. Supplies | B12: ='Budget Detail - Year 1'!L60 -> $0 | C12: ='Budget Detail - Year 1'!K60 -> $0 | D12: ='Budget Detail - Year 2'!L60 -> $0 | E12: ='Budget Detail - Year 2'!K60 -> $0 | F12: ='Budget Detail - Year 3'!L60 -> $0 | G12: ='Budget Detail - Year 3'!K60 -> $0 | H12: ='Budget Detail - Year 4'!L60 -> $0 | I12: ='Budget Detail - Year 4'!K60 -> $0 | J12: ='Budget Detail - Year 5'!L60 -> $0 | K12: ='Budget Detail - Year 5'!K60 -> $0 | L12: $0
A13: F. Construction | B13: ='Budget Detail - Year 1'!L72 -> $0 | C13: ='Budget Detail - Year 1'!K72 -> $0 | D13: ='Budget Detail - Year 2'!L72 -> $0 | E13: ='Budget Detail - Year 2'!K72 -> $0 | F13: ='Budget Detail - Year 3'!L72 -> $0 | G13: ='Budget Detail - Year 3'!K72 -> $0 | H13: ='Budget Detail - Year 4'!L72 -> $0 | I13: ='Budget Detail - Year 4'!K72 -> $0 | J13: ='Budget Detail - Year 5'!L72 -> $0 | K13: ='Budget Detail - Year 5'!K72 -> $0 | L13: $0
A14: G. Subawards (Subgrants) | B14: ='Budget Detail - Year 1'!L84 -> $0 | C14: ='Budget Detail - Year 1'!K84 -> $0 | D14: ='Budget Detail - Year 2'!L84 -> $0 | E14: ='Budget Detail - Year 2'!K84 -> $0 | F14: ='Budget Detail - Year 3'!L84 -> $0 | G14: ='Budget Detail - Year 3'!K84 -> $0 | H14: ='Budget Detail - Year 4'!L84 -> $0 | I14: ='Budget Detail - Year 4'!K84 -> $0 | J14: ='Budget Detail - Year 5'!L84 -> $0 | K14: ='Budget Detail - Year 5'!K84 -> $0 | L14: $0
A15: H. Procurement Contracts | B15: ='Budget Detail - Year 1'!L105 -> $0 | C15: ='Budget Detail - Year 1'!K105 -> $0 | D15: ='Budget Detail - Year 2'!L105 -> $0 | E15: ='Budget Detail - Year 2'!K105 -> $0 | F15: ='Budget Detail - Year 3'!L105 -> $0 | G15: ='Budget Detail - Year 3'!K105 -> $0 | H15: ='Budget Detail - Year 4'!L105 -> $0 | I15: ='Budget Detail - Year 4'!K105 -> $0 | J15: ='Budget Detail - Year 5'!L105 -> $0 | K15: ='Budget Detail - Year 5'!K105 -> $0 | L15: $0
A16: I. Other | B16: ='Budget Detail - Year 1'!L126 -> $0 | C16: ='Budget Detail - Year 1'!K126 -> $0 | D16: ='Budget Detail - Year 2'!L126 -> $0 | E16: ='Budget Detail - Year 2'!K126 -> $0 | F16: ='Budget Detail - Year 3'!L126 -> $0 | G16: ='Budget Detail - Year 3'!K126 -> $0 | H16: ='Budget Detail - Year 4'!L126 -> $0 | I16: ='Budget Detail - Year 4'!K126 -> $0 | J16: ='Budget Detail - Year 5'!L126 -> $0 | K16: ='Budget Detail - Year 5'!K126 -> $0 | L16: $0
A18: Total Direct Costs | B18: =SUM(B8:B16) -> $0 | C18: $0 | D18: $0 | E18: $0 | F18: $0 | G18: $0 | H18: $0 | I18: $0 | J18: $0 | K18: $0 | L18: =SUM(B18:K18) -> $0
A19: J. Indirect Costs | B19: ='Budget Detail - Year 1'!L138 -> $0 | C19: ='Budget Detail - Year 1'!K138 -> $0 | D19: ='Budget Detail - Year 2'!L138 -> $0 | E19: ='Budget Detail - Year 2'!K138 -> $0 | F19: ='Budget Detail - Year 3'!L138 -> $0 | G19: ='Budget Detail - Year 3'!K138 -> $0 | H19: ='Budget Detail - Year 4'!L138 -> $0 | I19: ='Budget Detail - Year 4'!K138 -> $0 | J19: ='Budget Detail - Year 5'!L138 -> $0 | K19: ='Budget Detail - Year 5'!K138 -> $0 | L19: =SUM(B19:K19) -> $0
A21: Total Project Costs | B21: =SUM(B18,B19) -> $0 | C21: $0 | D21: =SUM(D18,D19) -> $0 | E21: $0 | F21: $0 | G21: $0 | H21: $0 | I21: $0 | J21: $0 | K21: $0 | L21: =SUM(B21:K21) -> $0
A22: Does this budget contain conference costs which is defined broadly to include meetings, retreats, seminars, symposia, and training activities? - Y/N | J22: =IF(OR('Budget Detail - Year 1'!K2="Yes",'Budget Detail - Year 2'!K2="Yes",'Budget Detail - Year 3'!K2="Yes",'Budget Detail - Year 4'!K2="Yes",'Budget Detail - Year 5'!K2="Yes"),"Yes","No") -> No

Sheet Admin (hidden)
A1: devuser1

Sheet Reference Data (hidden)
A1: =19760 -> 19760 | B1: =A1*0.9 -> 17784 | C1: =A1*0.1 -> 1976
A6: PA1 Equipment Dropdown Options
A7: Vehicles
A8: Vehicles w/ accessory package
A9: Radios
A10: Computers
A11: Computer Aided Dispatch
A12: Records Management System
A13: Communication System
A14: Basic Issue Firearm
A15: Basic Issue Equipment
A16: Bullet Proof Vests
A18: PA1 Supplies Dropdown Options
A19: Basic Issue Uniforms
A21: PA1 Personnel Options
A22: Entry Level Sworn Officer
A23: Village Public Safety Officer (AK Only)
A24: Entry Level Sworn Ranger
A25: Entry Level Sworn Conservation and Wildlife Officer
A26: Civilian Methamphetamine Coordinator
A28: Demographics Yes No Options
A29: Yes
A30: No
A32: Travel Items
A33: Lodging
A34: Meals
A35: Mileage
A36: Transportation
A37: Local Travel
A38: Other

Sheet Example - Budget Detail Sheet
A1: Budget Detail EXAMPLE
A2: Does this budget contain conference costs which is defined broadly to include meetings, retreats, seminars, symposia, and training activities? - Y/N
A3: (DOJ Financial Guide, Section 3.10)
A4: A. Personnel
A5: Name | B5: Position | C5: Computation
A6: List each name, if known. | B6: List each position, if known. | C6: Show annual salary rate & amount of time devoted to the project for each name/position.
C7: Salary | E7: Rate | F7: Time Worked (# of hours, days, months, years) | H7: Percentage of Time | J7: Total Cost | K7: Non-Federal Contribution | L7: Federal Request
J9: =CEILING(C9*F9*H9,1) -> $0 | L9: =IF(J9-K9<0,0,J9-K9) -> $0
A10: John Smith | B10: Executive Director | C10: $140,000 | E10: yearly | F10: 1 | H10: 5% | J10: $7,000 | K10: $0 | L10: $7,000
A11: Jane Doe | B11: Project Manager | C11: $90,000 | E11: yearly | F11: 1 | H11: 75% | J11: $67,500 | K11: $0 | L11: $67,500
A12: Alex Jones | B12: Program Assistant | C12: $22 | E12: hourly | F12: 1,040 | H12: 100% | J12: $22,880 | K12: $0 | L12: $22,880
J13: $0 | L13: $0
J14: $0 | L14: $0
A15: Total(s) | J15: =SUM(J9:J14) -> $97,380 | K15: =SUM(K9:K14) -> $0 | L15: =SUM(L9:L14) -> $97,380
A16: Narrative
A17: John Smith, Executive Director, will provide oversight on the entire award providing 5% of this time to the project. Jane Doe, Project Manager, will manage the project, complete reports, and submit deliverables spending 75% of her time on the project. Alex Jones, Program Assistant, will provide the project manager assistance where needed spending 1,040 hours on the project.
A19: B. Fringe Benefits
A20: Name | D20: Computation
A21: List each grant-supported position receiving fringe benefits. | D21: Show the basis for computation.
D22: Base | F22: Rate | J22: Total Cost | K22: Non-Federal Contribution | L22: Federal Request
J24: =CEILING(D24*F24,1) -> $0 | L24: =IF(J24-K24<0,0,J24-K24) -> $0
A25: John Smith | D25: $7,000 | F25: 25.00% | J25: =CEILING(D25*F25,1) -> $1,750 | K25: $0 | L25: =IF(J25-K25<0,0,J25-K25) -> $1,750
A26: Jane Doe | D26: $67,500 | F26: 25.00% | J26: =CEILING(D26*F26,1) -> $16,875 | K26: $0 | L26: =IF(J26-K26<0,0,J26-K26) -> $16,875
A27: Alex Jones | D27: $22,880 | F27: 25.00% | J27: =CEILING(D27*F27,1) -> $5,720 | K27: $0 | L27: =IF(J27-K27<0,0,J27-K27) -> $5,720
J28: =CEILING(D28*F28,1) -> $0 | L28: =IF(J28-K28<0,0,J28-K28) -> $0
A29: Total(s) | J29: =SUM(J24:J28) -> $24,345 | K29: =SUM(K24:K28) -> $0 | L29: =SUM(L24:L28) -> $24,345
A30: Narrative
A31: Our fringe benefits rate is 25% and covers the following items: FICA (7.65%), Worker's comp (1.35%), Health Insurance (11%), Retirement (5%)
A33: C. Travel
A34: Purpose of Travel | B34: Location | D34: Type of Expense | E34: Basis | F34: Computation
A35: Indicate the purpose of each trip or type of trip (training, advisory group meeting) | B35: Indicate the travel destination. | D35: Lodging, Meals, Etc. | E35: Per day, mile, trip, Etc. | F35: Compute the cost of each type of expense X the number of people traveling.
F36: Cost | G36: Quantity | H36: # of Staff | I36: # of Trips | J36: Total Cost | K36: Non-Federal Contribution | L36: Federal Request
E38: =IF((D38="Lodging"),"Night",IF((D38="Meals"),"Day",IF((D38="Mileage"),"Mile",IF((D38="Transportation"),"Round-trip","N/A")))) -> N/A | J38: =CEILING(F38*G38*H38*I38,1) -> $0 | L38: =IF(J38-K38<0,0,J38-K38) -> $0
A39: Project Manager Training | B39: Reno, NV | D39: Other | E39: N/A | F39: $50.00 | G39: 1 | H39: 1 | I39: 1 | J39: $50 | K39: $0 | L39: $50
A40: Project Manager Training | B40: Reno, NV | D40: Local Travel | E40: N/A | F40: $50.00 | G40: 1 | H40: 1 | I40: 1 | J40: $50 | K40: $0 | L40: $50
A41: Project Manager Training | B41: Reno, NV | D41: Transportation | E41: Round-trip | F41: $600.00 | G41: 1 | H41: 1 | I41: 1 | J41: $600 | K41: $0 | L41: $600
A42: Project Manager Training | B42: Reno, NV | D42: Mileage | E42: Mile | F42: $0.51 | G42: 100 | H42: 1 | I42: 1 | J42: $51 | K42: $0 | L42: $51
A43: Project Manager Training | B43: Reno, NV | D43: Meals | E43: Day | F43: $51.00 | G43: 5.5 | H43: 1 | I43: 1 | J43: $281 | K43: $0 | L43: $281
A44: Project Manager Training | B44: Reno, NV | D44: Lodging | E44: Night | F44: $94.00 | G44: 5 | H44: 1 | I44: 1 | J44: $470 | K44: $0 | L44: $470
A45: Project Manager Field Travel | B45: Various | D45: Mileage | E45: Mile | F45: $0.51 | G45: 250 | H45: 1 | I45: 20 | J45: $2,550 | K45: $0 | L45: $2,550
A46: Mandatory Orientation Training | B46: Washington, DC | D46: Local Travel | E46: N/A | F46: $25.00 | G46: 1 | H46: 3 | I46: 1 | J46: $75 | K46: $0 | L46: $75
A47: Mandatory Orientation Training | B47: Washington, DC | D47: Other | E47: N/A | F47: $50.00 | G47: 1 | H47: 3 | I47: 1 | J47: $150 | K47: $0 | L47: $150
A48: Mandatory Orientation Training | B48: Washington, DC | D48: Transportation | E48: Round-trip | F48: $500.00 | G48: 1 | H48: 3 | I48: 1 | J48: $1,500 | K48: $0 | L48: $1,500
A49: Mandatory Orientation Training | B49: Washington, DC | D49: Mileage | E49: Mile | F49: $0.51 | G49: 100 | H49: 1 | I49: 1 | J49: $51 | K49: $0 | L49: $51
A50: Mandatory Orientation Training | B50: Washington, DC | D50: Meals | E50: Day | F50: $71.00 | G50: 3.5 | H50: 3 | I50: 1 | J50: $746 | K50: $0 | L50: $746
A51: Mandatory Orientation Training | B51: Washington, DC | D51: Lodging | E51: Night | F51: $224.00 | G51: 3 | H51: 3 | I51: 1 | J51: $2,016 | K51: $0 | L51: $2,016
E52: N/A | J52: $0 | L52: $0
A53: Total(s) | J53: =SUM(J38:J52) -> $8,590 | K53: =SUM(K38:K52) -> $0 | L53: =SUM(L38:L52) -> $8,590
A54: Narrative
A55: Per award guidelines, key memebers must attend orientation training in Washington, DC. WE are following our own written travel policy. Lodging is for 3 nights and meals are budgeted at 3.5 days as the two travel days are computed at .75 days. Mileage to get to the airport and local travel is for taxi to and from the airport. Also baggage fees of $50 is $25 each way. The project manager will attend trainin in REno, NV. We are following our own written travel policy. Lodging is for 5 nights and meals are budgeted at 5.5 days as the two travel days are computed at .75 days. Mileage to get to the airport and local travel is for taxi to and from the airport. Also, baggage fees of $50 is for $25 each way. The project manager will use her own vehicle to travel to complete field work with the average trip around 250 miles and an anticipated 20 trips.
A57: D. Equipment
A58: Item | D58: Computation
A59: List and describe each item of equipment that will be purchased | D59: Compute the cost (e.g., the number of each item to be purchased X the cost per item)
D60: # of Items | F60: Cost | J60: Total Cost | K60: Non-Federal Contribution | L60: Federal Request
J62: =CEILING(D62*F62,1) -> $0 | L62: =IF(J62-K62<0,0,J62-K62) -> $0
A63: Dell Laptop Computer | D63: 1 | F63: $2,547 | J63: =CEILING(D63*F63,1) -> $2,547 | K63: $0 | L63: =IF(J63-K63<0,0,J63-K63) -> $2,547
J64: =CEILING(D64*F64,1) -> $0 | L64: =IF(J64-K64<0,0,J64-K64) -> $0
A65: Total(s) | J65: =SUM(J62:J64) -> $2,547 | K65: =SUM(K62:K64) -> $0 | L65: =SUM(L62:L64) -> $2,547
A66: Narrative
A67: The project manager will need a laptop computer while out in the field and while away at training. We are following our agency's capitalization policy.
A69: E. Supplies
A70: Supply Items | D70: Computation
A71: Provide a list of the types of items to be purchased with grant funds. | D71: Describe the item and the compute the costs. Computation: The number of each item to be purchased X the cost per item.
D72: # of Items | F72: Cost | J72: Total Cost | K72: Non-Federal Contribution | L72: Federal Request
J74: =CEILING(D74*F74,1) -> $0 | L74: =IF(J74-K74<0,0,J74-K74) -> $0
A75: Printer | D75: 1 | F75: $500.00 | J75: $500 | K75: $0 | L75: $500
A76: Locking file cabinet | D76: 2 | F76: $1,000.00 | J76: $2,000 | K76: $0 | L76: $2,000
A77: Flatbed scanner | D77: 1 | F77: $400.00 | J77: $400 | K77: $0 | L77: $400
A78: General office supplies | D78: 12 | F78: $150.00 | J78: $1,800 | K78: $0 | L78: $1,800
J79: $0 | L79: $0
A80: Total(s) | J80: =SUM(J74:J79) -> $4,700 | K80: =SUM(K74:K79) -> $0 | L80: =SUM(L74:L79) -> $4,700
A81: Narrative
A82: The project manager will need a printer to print reports. A locking file cabinet is needed to keep client information secure. A flatbed scanner is needed to scan various documents collected in the field. General office supplies will be used bt all personnel on this project and include: pens, pencils, paper, binder clips, and other basic supplies. The office supplies are based on 12 months at $150 per month. This amount was determined based upon other projects of this size that we have completed in the past.
A84: F. Construction | B84: As a rule, construction costs are not allowable. Consult with the program office before budgeting funds in this category.
A85: Purpose | B85: Description of Work | D85: Computation
A86: Provide the purpose of the construction | B86: Describe the construction project(s) | D86: Compute the costs (e.g., the number of each item to be purchased X the cost per item)
D87: # of Items | F87: Cost | J87: Total Cost | K87: Non-Federal Contribution | L87: Federal Request
J89: =CEILING(D89*F89,1) -> $0 | L89: =IF(J89-K89<0,0,J89-K89) -> $0
A90: Total(s) | J90: =SUM(J89:J89) -> $0 | K90: =SUM(K89:K89) -> $0 | L90: =SUM(L89:L89) -> $0
A91: Narrative
A94: G. Subawards (Subgrants)
A95: Description | C95: Purpose | H95: Consultant
A96: Provide a description of the activities to be carried out by subrecipients. | C96: Describe the purpose of the subaward (subgrant) | H96: Is the subaward for a consultant?
J97: Total Cost | K97: Non-Federal Contribution | L97: Federal Request
L99: =IF(J99-K99<0,0,J99-K99) -> $0
A100: Conduct field activities in a remote area | C100: Provide services and conduct field work in a remote area included in the project | H100: No | J100: $25,000 | K100: $0 | L100: =IF(J100-K100<0,0,J100-K100) -> $25,000
L101: =IF(J101-K101<0,0,J101-K101) -> $0
A102: Total(s) | J102: =SUM(J99:J101) -> $25,000 | K102: =SUM(K99:K101) -> $0 | L102: =SUM(L99:L101) -> $25,000
A103: Consultant Travel (if necessary)
A104: Purpose of Travel | B104: Location | D104: Type of Expense | G104: Computation
A105: Indicate the purpose of each trip or type of trip (training, advisory group meeting) | B105: Indicate the travel destination. | D105: Hotel, airfare, per diem | G105: Compute the cost of each type of expense X the number of people traveling.
G106: Cost | H106: Duration or Distance | I106: # of Staff | J106: Total Cost | K106: Non-Federal Contribution | L106: Federal Request
J108: =CEILING(G108*H108*I108,1) -> $0 | L108: =IF(J108-K108<0,0,J108-K108) -> $0
J109: =CEILING(G109*H109*I109,1) -> $0 | L109: =IF(J109-K109<0,0,J109-K109) -> $0
J110: =CEILING(G110*H110*I110,1) -> $0 | L110: =IF(J110-K110<0,0,J110-K110) -> $0
A111: Total | J111: =SUM(J108:J110) -> $0 | K111: =SUM(K108:K110) -> $0 | L111: =SUM(L108:L110) -> $0
A112: Narrative
A113: The agency will make a subaward to provide services and conduct field work in a remote area. The $25,000 was calculated based upon a similar size project completed in the same area.
A115: H. Procurement Contracts
A116: Description | C116: Purpose | H116: Consultant
A117: Provide a description of the products or services to be procured by contract and an estimate of the costs. Applicants are encouraged to promote free and open competition in awarding contracts. A separate justification must be provided for sole source procurements in excess of the Simplified Acquisition Threshold (currently $150,000). | C117: Describe the purpose of the contract | H117: Is the contract for a consultant?
J118: Total Cost | K118: Non-Federal Contribution | L118: Federal Request
L120: =IF(J120-K120<0,0,J120-K120) -> $0
A121: William Penn, CPA | C121: Accounting Assistance | H121: Yes | J121: $9,400 | K121: $0 | L121: =IF(J121-K121<0,0,J121-K121) -> $9,400
A122: ABC Company | C122: Survey creation and data entry services from submitted surveys. | H122: No | J122: $40,000 | K122: $0 | L122: =IF(J122-K122<0,0,J122-K122) -> $40,000
L123: =IF(J123-K123<0,0,J123-K123) -> $0
A124: Total(s) | J124: =SUM(J120:J123) -> $49,400 | K124: =SUM(K120:K123) -> $0 | L124: =SUM(L120:L123) -> $49,400
A125: Consultant Travel (if necessary)
A126: Purpose of Travel | B126: Location | D126: Type of Expense | G126: Computation
A127: Indicate the purpose of each trip or type of trip (training, advisory group meeting) | B127: Indicate the travel destination. | D127: Hotel, airfare, per diem | G127: Compute the cost of each type of expense X the number of people traveling.
G128: Cost | H128: Duration or Distance | I128: # of Staff | J128: Total Cost | K128: Non-Federal Contribution | L128: Federal Request
J130: =CEILING(G130*H130*I130,1) -> $0 | L130: =IF(J130-K130<0,0,J130-K130) -> $0
J131: =CEILING(G131*H131*I131,1) -> $0 | L131: =IF(J131-K131<0,0,J131-K131) -> $0
J132: =CEILING(G132*H132*I132,1) -> $0 | L132: =IF(J132-K132<0,0,J132-K132) -> $0
A133: Total | J133: =SUM(J130:J132) -> $0 | K133: =SUM(K130:K132) -> $0 | L133: =SUM(L130:L132) -> $0
A134: Narrative
A135: ABC Company will put together online an online survey at the direction of the project manager to reach out to the various sites to determine the needs. In addition a hard copy survey will also be available for thos unable to use the online survey. ABC Company will key in the hard copy surveys. Once the surveys are completed, ABC Company will compile the data for the project manager. William Penn will assist in completing financial reports as well as tracking award expenditures. Mr. Penn's rate is $47 per hour, and we estimate that Mr. Penn will provide 200 hours of services.
A138: I. Other Costs
A139: Description | C139: Computation
A140: List and describe items that will be paid with grants funds (e.g. rent, reproduction, telephone, janitorial, or security services, and investigative or confidential funds). | C140: Show the basis for computation
C141: Quantity | E141: Basis | F141: Cost | H141: Length of Time | J141: Total Cost | K141: Non-Federal Contribution | L141: Federal Request
J143: =CEILING(C143*F143*H143,1) -> $0 | L143: =IF(J143-K143<0,0,J143-K143) -> $0
A144: Rent | C144: 500 | E144: sq feet | F144: 2.51 | H144: 12 | J144: $15,060 | K144: $0 | L144: $15,060
A145: Telephone | C145: 1 | E145: monthly rate | F145: 50 | H145: 12 | J145: $600 | K145: $0 | L145: $600
A146: Reproduction | C146: 500 | E146: per copy | F146: 0.05 | H146: 12 | J146: $300 | K146: $0 | L146: $300
A147: Postage | C147: 1000 | E147: quarterly newsletter | F147: 0.5 | H147: 4 | J147: $2,000 | K147: $0 | L147: $2,000
J148: $0 | L148: $0
A149: Total(s) | J149: =SUM(J144:J148) -> $17,960 | K149: =SUM(K148:K148) -> $0 | L149: =SUM(L144:L148) -> $17,960
A150: Narrative
A151: Rent is charged at $2.51 per square foot per month. Telephone is based upon $50 per month for 12 months. Reproduction is based on 500 copies per month for 12 moths. Postage for mailing a quarterly newsletter for 1,000 recipients.
A153: J. Indirect Costs
A154: Description | D154: Computation
A155: Describe what the approved rate is and how it is applied. | D155: Compute the indirect costs for those portions of the program which allow such costs.
D156: Base | F156: Indirect Cost Rate | J156: Total Cost | K156: Non-Federal Contribution | L156: Federal Request
J158: =CEILING(D158*F158,1) -> $0 | L158: =IF(J158-K158<0,0,J158-K158) -> $0
A159: Indirect Costs | D159: $121,725 | F159: 12.54% | J159: =CEILING(D159*F159,1) -> $15,265 | K159: $0 | L159: =IF(J159-K159<0,0,J159-K159) -> $15,265
J160: =CEILING(D160*F160,1) -> $0 | L160: =IF(J160-K160<0,0,J160-K160) -> $0
A161: Total(s) | J161: =SUM(J158:J160) -> $15,265 | K161: =SUM(K158:K160) -> $0 | L161: =SUM(L158:L160) -> $15,265
A162: Narrative
A163: Indirect costs are based on Federally approved rate of 12.54% on Total Direct Labor (Personnel + Fringe).

Sheet Definitions
A1: Definitions
A2: Additional information can be found in the DOJ Financial Guide
A3: DOJ Financial Guide
A4: Term | B4: Definition
A5: Match | B5: Match is the recipient share of the project costs. Match may either be “in-kind” or “cash.” In-kind match includes the value of donated services. Cash match includes actual cash spent by the recipient and must have a cost relationship to the Federal award that is being matched. (Example: Match on administrative costs should be other administrative costs, not other matching on program costs). Sample Non-Federal Match Calculation: Match Calculation: If the match is 25%, the calculation is as follows: Federal Request: $350,000 Divided by .75 or 75%: $466,667 Multiplied by match amount .25 or 25% equal required match amount: $116,667
A6: Approved Negotiated Rate | B6: Approved Negotiated Rate is any current fringe benefits rate approved for the grant recipient by their cognizant Federal agency.
A7: Expendable | B7: An expendable item is any materials that are consumed during the course of the project such as office supplies, program supplies etc. Expendable items are usually considered to be consumed when issued and are not recorded as returnable inventory.
A8: Non-Expendable | B8: A non-expendable item is tangible property having a useful life of more than two years and an acquisition cost of $5,000 or more per unit. (Note: Organization’s own capitalization policy may be used for items costing less than $5,000).
A9: Renovations | B9: Costs incurred for ordinary rearrangements, alterations and restoration of facilities are considered allowable. Special arrangement and alteration costs incurred specifically for the project are allowable with the prior approval of the awarding agency.
A10: Federal Acquisition Regulations | B10: The Federal Acquisition Regulations are established for the codification and publication of uniform policies and procedures for acquisition by all executive agencies. The Federal Acquisition Regulations System consists of the Federal Acquisition Regulation (FAR), which is the primary document, and agency acquisition regulations that implement or supplement the FAR.
A11: Sole Source | B11: Procurement by noncompetitive proposals is procurement through the solicitation from only one source, or after solicitation of a number of sources, competition is determined inadequate. Grant recipients may make the initial determination that competition is not feasible if one of the following circumstances exists: 1. The item of service is available only from a single source. 2. The public exigency or emergency for the requirement will not permit a delay resulting from a competitive solicitation. 3. After solicitation of a number of sources, competitions is considered inadequate.
A12: Arm-Length Transaction | B12: A transaction in which the buyers and sellers of a product act independently and have no relationship to each other. The concept of an arm's length transaction is to ensure that both parties in the deal are acting in their own self interest and are not subject to any pressure or duress from the other party. Generally, costs of renting facilities are not allowable where one party to the rental agreement is able to control or substantially influence the actions of the other (e.g. organizations under common control through common officers. Directors or members).
A13: Confidential Funds | B13: Confidential funds are those monies allocated to: Purchase of Services (P/S). This category includes travel or transportation of a non- Federal officer or an informant; the lease of an apartment, business front, luxury-type automobiles, aircraft or boat, or similar effects to create or establish the appearance of affluence; and/or meals, beverages, entertainment, and similar expenses (including buy money and flash rolls, etc.) for undercover purposes, within reasonable limits. Purchase of Evidence (P/E). This category is for P/E and/or contraband, such as narcotics and dangerous drugs, firearms, stolen property, counterfeit tax stamps, and so forth, required to determine the existence of a crime or to establish the identity of a participant in a crime. Purchase of Specific Information (P/I). This category includes the payment of monies to an informant for specific information. All other informant expenses would be classified under P/S and charged accordingly.
A14: Fully Executed Negotiated Agreement | B14: Fully Executed Negotiated Agreement is a signed, approved indirect cost rate agreement which reflects an understanding reached between the grant recipient and the cognizant Federal agency.
A15: Cognizant Federal Agency | B15: The cognizant Federal agency is the Federal agency that generally provides the most Federal financial assistance to t he recipient of funds. Cognizance is assigned by the Office of Management and Budget (OMB). Cognizant agency assignments for the largest cities and counties are published in the Federal Register.
